{"text_format":"1","workbook":"xlsx","n_sheets":34,"sheets":["Application Information","Threshold Requirements","Table of Contents-Attachments","Applicant Info","Eligibility","E.O. 14218","RISK ASSESSMENT","RISK Questions","Capacity and Experience","Project Description","Project Info ESG Components","Collaboration and Partnerships ","Supportive Activities"," Needs Analysis","Proposed Goals Outcome ","Activities","Match Funds","Match Budget","Budget and Financial Controls ","Project Budget","..","Budget Summary","Indirect Cost","Past Performance ","Certification","Attachment A (ED)","Attachment A (CM)","Attachment A (FS)","Factors.","Project Budget Street Outreach","Project Budget Shelter","Project Budget RRH","Project Budget HP","Project Budget HMIS"],"not_rendered":{"charts":0,"images":4,"macros":1,"external_links":1,"defined_names":28,"comments":3,"pivot_tables":0},"unopened":[],"bounds":{"document_bytes":16777216,"sheet_cells":100000,"rows_first":2000,"rows_last":500,"rows_between":2000,"halvings":0,"cell_chars":16384,"cell_head_chars":4096},"cells_cut":0,"cells_raw":0,"read":"whole","date_system":"1900"}

{"sheet":"Application Information","index":0,"n_rows":101,"n_cols":10,"rows_kept":101,"cut":false,"hidden":false,"merged":[[45,2,45,11],[47,2,47,11],[100,3,100,5],[18,2,18,11],[19,2,19,10],[22,2,22,11],[24,2,24,11],[25,2,25,11],[28,2,28,11],[41,5,41,7],[31,5,31,7],[40,5,40,7],[32,9,40,9],[20,2,20,10],[35,5,35,7],[11,3,11,7],[12,3,12,7],[43,2,43,11],[44,2,44,11],[15,2,15,11],[16,2,16,11],[26,2,26,10],[27,2,27,11],[32,5,32,7],[33,5,33,7],[34,5,34,7],[36,5,36,7],[37,5,37,7],[38,5,38,7],[11,8,11,9],[12,8,12,9],[3,2,3,11],[4,2,4,11],[6,2,6,11],[9,2,9,11],[10,2,10,11]]}
[]
[]
[]
[null,null,"MISSISSIPPI HOME CORPORATION"]
[null,null,"EMERGENCY SOLUTIONS GRANT (ESG) PROGRAM"]
[]
[null,null,"PY 2026 ESG APPLICATION"]
[]
[null,null,"APPLICATION CYCLE"]
[null,null,"Applications for the Emergency Solutions Grant (ESG) Program will be accepted during the application cycle stated below.  Applications will only be accepted during the designated dates and time.  There will not be any exceptions for late applications."]
[null,null,"FY 2026 Application Cycle"]
[null,null,null,"Application Submission Open Date:",null,null,null,null,"2026-08-01"]
[null,null,null,"Application Submission Close Date:",null,null,null,null,"2026-08-31"]
[null,null,null,null,null,null,null,null,"At 4:00 pm"]
[null,null,"APPLICATION PACKAGE"]
[null,null,"An electronic version of this Excel application, along with a signed certification page and required attachments must be submitted through email to esg.ss@mshc.com.  A hard copy of the ESG application is optional but recommended if you have a large application.\n\nIf your application is too big to submit electronically, consider sending the packet as an electronic compressed zipped folder."]
[null,null,"All documents must be submitted in the order listed in the Table of Contents.  Failure to submit the Application Package properly may result in a deduction of points.  Incomplete or late applications will not be considered for funding.\n\nApplications sent only by mail or only sent directly to MHC staff will not be accepted. "]
[null,null,"APPLICATION INSTRUCTIONS"]
[null,null,"_________________________________________________________________________________________"]
[null,null,"This ESG application is arranged based on eligible activities.\nAgencies are only required to answer questions related to their proposed activities. For example, agencies that are focusing on Rapid Rehousing and Homeless Prevention Services (24 CFR 576.105) only, can complete the  \"Project Info ESG Components\" tab Section B then move to the \"Project Info Supportive Service\" tab. \n\nNEW agencies are not required to complete the Past Performance tab. See instructions on \"Past Performace\" tab. \nAdditionally, New agencies are encouraged to use Special Match exemptions as needed. The match in its entirety must equal the grant request amount. The match exemption for new agencies is capped at $30,000. \n\n\n"]
[null,null,"Funding Caps:\n\nWhen applying for ESG funding, agencies can request between $75,000 and $300,000. However, it is important to note that the caps do not ensure that your agency will receive the exact amount requested. The final amount awarded depends on the available funds and the number of agencies receiving funding. As a result, it is possible for agencies to receive less than $75,000 in their contract award.\nNot more than 60% of the fiscal year grant may be used for emergency shelter and street outreach activities.\nNot more than 50% of your grant can be used on staffing. \nNot less than 40% of the fiscal year grant must be used for homelessness prevention, rapid rehousing and/or HMIS activities.\nAt a minimum, 5% of total funds must be used to house unsheltered homeless individuals unless otherwise waived."]
[null,null,"APPLICATION SUBMISSION"]
[null,null,"All applications are considered final at the time they are received.  Additional information cannot be submitted unless specifically requested by MHC."]
[]
[null,null,"MISSISSIPPI HOME CORPORATION"]
[null,null,"Applications must be sent to:"]
[null,null,"Email:  esg.ss@mshc.com"]
[null,null,"Email Subject: \"ESG26 Application\""]
[null,null,"Mail:\n        Tamara Stewart, VP Grant Management \n        Mississippi Home Corporation, (ESG PY 2026)\n        735 Riverside Dr.\n Jackson, MS 39202"]
[]
[null,null,"SCORING CRITERIA"]
[null,null,null,null,null,"Factors ",null,null,"Max Score"]
[null,null,null,null,null,"Capacity and Experience",null,null,10,"New ESG applicants' maximum points ="]
[null,null,null,null,null,"Need or Extent of Problem",null,null,10]
[null,null,null,null,null,"Collaboration Partnership",null,null,10]
[null,null,null,null,null,"Past Performance /Program Evaluation",null,null,15]
[null,null,null,null,null,"CES and HMIS/Data monitoring",null,null,5]
[null,null,null,null,null,"Program Plan & Project Description ",null,null,15]
[null,null,null,null,null,"Program Goals & Outcomes",null,null,10]
[null,null,null,null,null,"MHC Discretionary Points",null,null,10]
[null,null,null,null,null,"Financial Controls & Budget",null,null,15]
[null,null,null,null,null,"Total",null,null,{"$f":"SUM(I33:I41)","v":100},{"$f":"I42-I36","v":85}]
[null,null,"TECHNICAL ASSISTANCE"]
[null,null,"If you need assistance during the application cycle, please contact:"]
[null,null,"Fredrick Davis at (601) 718-4657 / fredrick.davis@mshc.comom"]
[null,null,"Vickie Palfrey at (601) 718-4655 / vickie.palfrey@mshc.com"]
[]
[]
[]
[]
[]
[]
[]
[]
[]
[]
[]
[]
[]
[]
[]
[]
[]
[]
[]
[]
[]
[]
[]
[]
[]
[]
[]
[]
[]
[]
[]
[]
[]
[]
[]
[]
[]
[]
[]
[null,null,null,"Smead® Pressboard Fastener Folders With SafeSHIELD® Fasteners, 3\" Expansion, Legal Size, 60% Recycled, Gray/Green, Box Of 25 Item # 935783"]
[]
[]
[]
[]
[]
[]
[]
[]
[]
[]
[]
[]
[]
[]
[null,null,null,"<GO BACK>"]

{"sheet":"Threshold Requirements","index":1,"n_rows":26,"n_cols":10,"rows_kept":26,"cut":false,"hidden":false,"merged":[[2,2,2,13],[5,2,5,13],[7,2,7,13],[10,4,10,9],[13,4,13,13],[25,4,25,13],[24,4,24,13],[8,4,8,13],[12,4,12,13],[19,4,19,13],[21,4,21,13],[20,4,20,13],[23,4,23,13],[22,4,22,13],[11,4,11,13],[14,4,14,13],[15,4,15,13],[18,4,18,13],[16,4,16,13],[17,4,17,13]]}
[]
[]
[null,null,"EMERGENCY SOLUTIONS GRANT APPLICATION"]
[null,null,null,null,null,null,null,null,null,"ESG PY 2026"]
[]
[null,null,"Threshold Requirements "]
[]
[null,null,"Applicants must meet all of the following criteria:"]
[null,null,null,1,"The applicant is an eligible applicant (non-entitlement local unit of government, nonprofit organization). Nonprofits must submit verification of their nonprofit status, and proof of good standing with the Secretary of State for Mississippi (Or otherwise in good standing based on any additional information provided by the agency.), Articles of Incorporation, Bylaws and/or Constitution, and a copy of the Organizational Chart of Agency Board & Staff.  "]
[null,null,null,2,"The applicant is registered with sam.gov and provides a unique entity identifier (UEI)."]
[null,null,null,3,"The application is fully completed."]
[null,null,null,4,"Applicants must not have any unresolved audit or monitoring findings associated with the programs managed by MHC or HUD. "]
[null,null,null,5,"The applicant must disclose if they received any grants from MHC or HUD for which MHC or HUD was de-obligated part or all of the grant."]
[null,null,null,6,"Applicants must disclose any loan or grant received from HUD or MHC for which HUD or MHC has issued a letter of findings associated with use of an MHC operated program. Applicants must provide evidence that findings have been resolved. MHC may disqualify the applicant from consideration for funding based on this information. Findings may include, but are not limited to, failing to submit required reports."]
[null,null,null,7,"The applicant must disclose all other grants and funding sources used to support activities and staff. "]
[null,null,null,8,"Section 3 Summary Report Form HUD 60002 must be submitted if necessary.  "]
[null,null,null,9,"The applicant must submit their most recent Single Audit program-specific audits if they expended $1,000,000 or more in Federal awards during the last fiscal year (CFR §200.501). Financial statements must be prepared or audited by a CPA.\nIf the applicant is currently undergoing a Single Audit when this application is due, and the audit is within the required time-frame set by 2 CFR 200 (which falls within the application cycle), the applicant may submit their most recent completed audit along with a letter of engagement from their CPA. MHC will require a copy of the completed Single Audit by October 1st for the application to be considered for funding. "]
[null,null,null,10,"The applicant must be able to provide their audits, financial statements, and tax forms (IRS 990) for the last three years. Non-profit applicants must include a copy of IRS form 990 (Informational Tax Return of Organizations Exempt from Income Tax), or an explanation of why your organization has not been required to complete such a form."]
[null,null,null,11,"Homeless participation.  If a sub-recipient is unable to meet the participation of homeless individuals’ requirement in section 416(d) of the McKinney-Vento Act, the sub-recipient need not obtain approval of a formal waiver so long as the sub-recipient develops a plan to consult with homeless or formerly homeless individuals in considering and making policies and decisions regarding any facilities, services or other assistance that receive ESG funding."]
[null,null,null,12,"Completion of the Risk Assessment Questionnaire. Submission of the Risk Assessment certification if applicable. "]
[null,null,null,13,"Applications submitted by a non-entitlement local unit of government must include a copy of the Resolution authorizing the submission of their application. The Resolution must be adopted by the local unit of government and must be signed and dated by the local unit of government’s Chief Elected Official."]
[null,null,null,14,"Applications submitted by private nonprofit organizations that are operating existing homeless shelters must include a copy of the authorizing Resolution. The Resolution must be adopted by the nonprofit organization’s Board and must be signed and dated by the President of the Board."]
[null,null,null,15,"Applications from private nonprofit organizations that are operating existing homeless shelters must also include a letter from the local unit of government approving the submission of the application. The letter must refer to the current ESG program year for which the application is being submitted and is signed by the Chief Elected Official."]
[null,null,null,16,"Any application that has been prepared by an application preparer that is involved in a pending debarment or suspension proceeding before a state or federal agent shall not be reviewed until such time as the debarment proceeding has been finally resolved. No person who is involved in a suspension or debarment proceeding shall be allowed to administer an ESG project until such time as the suspension or debarment process finding is resolved."]
[null,null,null,17,"ESG has a dollar-for-dollar MATCH requirement. Match requirement must be documented in the application. The matching amount must be equal to the amount of ESG funds being requested. MHC may elect to give a match waiver to first-time ESG applicants.  "]
[null,null,null,18,"Shelters must submit Purchase documents or a Lease Agreement for their Shelter Building."]

{"sheet":"Table of Contents-Attachments","index":2,"n_rows":67,"n_cols":11,"rows_kept":67,"cut":false,"hidden":false,"merged":[[66,5,66,12],[2,2,3,12],[5,2,5,12],[7,2,7,12],[62,5,62,12],[64,5,64,12],[15,5,17,12],[37,5,37,13],[38,5,38,13],[39,5,39,12]]}
[]
[]
[null,null,"2026 EMERGENCY SOLUTIONS GRANT APPLICATION"]
[]
[]
[null,null,"TABLE OF CONTENTS & REQUIRED ATTACHMENTS"]
[]
[null,null,"The following documents must be submitted with the application.  All items indexed must be tabbed and numbered accordingly.  "]
[]
[null,null,"APPLICANT:"]
[]
[null,null,"I.","General Information"]
[]
[null,null,null,null,"1.","Cover Letter"]
[]
[null,null,null,null,"2.","Executed Application- The application consists of the completion of this entire Excel Workbook and submission of required attachments "]
[]
[]
[]
[null,null,null,null,3,"Site Control Documentation (for Shelters only)"]
[]
[null,null,"II.","Organization Documents"]
[]
[null,null,null,null,"1.","Articles of Incorporation"]
[]
[null,null,null,null,"2.","Bylaws and/or constitution"]
[]
[null,null,null,null,"3.","Certificate of Good Standing from Mississippi Secretary of State",null,null,null,null,"Available online"]
[]
[null,null,null,null,"4.","IRS 501(c)(3) Status Letter"]
[]
[null,null,null,null,"5.","Organization Chart (identify staff/volunteers/board who represent the population)"]
[]
[null,null,null,null,"6.","List of Board Members (include name, title, city and state of residence, occupation, email address)"]
[]
[null,null,null,null,"7.","Key Staff Resumes"]
[null,null,null,null,8,"Verification of Drug-Free Workplace Certification 24 CFR 576.407(a)"]
[null,null,null,null,9,"Shelter only- Certification of approval from the unit of general purpose local government for the geographic area in which Emergency Shelter activities were carried out."]
[null,null,null,null,10,"Active registration with sam.gov "]
[null,null,null,null,11,"Indirect cost rate forms and supporting documents, if applicable. "]
[null,null,"III.","Other Threshold Factors"]
[]
[null,null,null,null,"1.","Financial Statements and IRS Form 990 for 3 years"]
[null,null,null,null,"2.","Section 3 Summary Report Form HUD 60002"]
[null,null,null,null,"3.","Match Funds Documentation"]
[null,null,null,null,4,"Emergency Shelter required forms"]
[null,null,null,null,5,"Single Audit for the most recent fiscal year.  "]
[null,null,null,null,6,"Risk Assessment Certification if applicable"]
[null,null,"IV.","Scoring Factors Documentation"]
[]
[]
[null,null,null,null,"1.","Applicant Experience & Capacity Form (Attachment A in this document)"]
[]
[null,null,null,null,"2.","Memorandum of Understanding for Services and letters of commitment"]
[]
[null,null,null,null,"3.","CoC Letter"]
[]
[null,null,null,null,"4.","Past Performance Report (if applicable)"]
[null,null,null,null,5,"Agency Financial Documents"]
[]
[null,null,"V.","Other Recommended Attachments (please describe)"]
[]
[null,null,null,null,"1.","It is recommended to start the Environmental Review process pre-award. "]
[]
[null,null,null,null,"2."]
[]
[null,null,null,null,"3."]

{"sheet":"Applicant Info","index":3,"n_rows":131,"n_cols":17,"rows_kept":131,"cut":false,"hidden":false,"merged":[[105,6,105,9],[105,10,105,16],[103,3,103,5],[103,6,103,9],[103,10,103,16],[104,3,104,5],[104,6,104,9],[104,10,104,16],[105,3,105,5],[92,6,92,9],[92,10,92,12],[90,3,90,5],[90,6,90,9],[90,10,90,12],[91,3,91,5],[91,6,91,9],[91,10,91,12],[92,3,92,5],[93,3,93,5],[93,6,93,9],[93,10,93,12],[94,3,94,5],[94,6,94,9],[94,10,94,12],[98,3,98,16],[102,6,102,9],[102,10,102,16],[100,3,100,5],[100,6,100,9],[100,10,100,16],[101,3,101,5],[101,6,101,9],[101,10,101,16],[102,3,102,5],[114,6,114,9],[114,10,114,16],[115,3,115,5],[115,6,115,9],[115,10,115,16],[112,3,112,5],[112,6,112,9],[112,10,112,16],[113,3,113,5],[113,6,113,9],[113,10,113,16],[114,3,114,5],[111,6,111,9],[111,10,111,16],[109,3,109,5],[109,6,109,9],[109,10,109,16],[110,3,110,5],[110,6,110,9],[110,10,110,16],[111,3,111,5],[108,6,108,9],[108,10,108,16],[106,3,106,5],[106,6,106,9],[106,10,106,16],[107,3,107,5],[107,6,107,9],[107,10,107,16],[108,3,108,5],[69,4,69,7],[71,4,71,10],[87,3,87,5],[88,3,88,5],[88,6,88,9],[88,10,88,12],[89,3,89,5],[89,6,89,9],[89,10,89,12],[86,3,86,5],[86,6,86,9],[86,10,86,12],[87,6,87,9],[87,10,87,12],[84,3,84,5],[84,6,84,9],[84,10,84,12],[85,3,85,5],[85,6,85,9],[85,10,85,12],[80,6,80,7],[83,3,83,16],[51,9,51,10],[52,4,52,7],[54,4,54,7],[56,4,56,10],[63,4,63,16],[65,4,65,7],[65,9,65,10],[66,9,66,10],[67,4,67,7],[28,14,28,16],[32,14,32,16],[43,3,43,16],[48,4,48,16],[50,4,50,7],[50,9,50,10],[28,4,28,7],[32,4,32,7],[34,4,34,9],[30,14,30,16],[3,3,3,16],[4,3,4,16],[5,3,5,16],[6,2,6,17],[8,2,8,16],[18,12,18,13],[18,14,18,16],[26,4,26,7],[18,4,18,10],[20,4,20,7],[20,9,20,10],[21,4,21,7],[21,9,21,10],[22,4,22,7],[23,4,23,7],[14,3,14,7],[14,10,14,16],[22,9,22,10],[23,9,23,10],[24,4,24,16],[26,10,26,16],[13,3,13,16]]}
[]
[]
[]
[null,null,null,"MISSISSIPPI HOME CORPORATION"]
[null,null,null,"735 Riverside Drive |  Jackson  |  MS  |  39056"]
[null,null,null,"EMERGENCY SOLUTIONS GRANT (ESG) PROGRAM"]
[null,null,"PY 2026 ESG APPLICATION"]
[]
[null,null,"I.   APPLICANT INFORMATION"]
[]
[null,null,null,"Application Year:","FY 2026 - 2027 ESG Application"]
[null,null,null,null,null,null,null,null,null,null,null,null,"Select one:"]
[]
[]
[null,null,null,"What CoC areas do your program cover. Select all that apply:\n\n      Central CoC\n      BoS CoC\n      Open Doors Homeless Coalition ",null,null,null,null,null,null,"Are you currently receiving other federal funds?    \n      Yes\n      No"]
[]
[null,null,null,"Agency"]
[]
[null,null,null,"Agency Name:",null,null,null,null,null,null,null,null,"Tax ID No.:"]
[]
[null,null,null,"Mailing Address:"]
[null,null,null,null,"Street",null,null,null,null,"City",null,null,"State",null,"Zip",null,"County"]
[null,null,null,"Physical Address:"]
[null,null,null,null,"Street",null,null,null,null,"City",null,null,"State",null,"Zip",null,"County"]
[null,null,null,"Website URL:"]
[]
[null,null,null,"Contact Person:",null,null,null,null,null,"Contact Email:  "]
[]
[null,null,null,"Business Phone:",null,null,null,null,null,null,"        UEI Number:"]
[]
[null,null,null,null,null,null,null,null,null,null,"DUNS Number: "]
[]
[null,null,null,"Business Fax:",null,null,null,null,null,null,"        Fiscal Year End:"]
[]
[null,null,null,"Business Email:"]
[]
[null,null,null,"Enter the total number of years the agency has been in operation:"]
[]
[null,null,null,"Enter the total number of part-time staff employed by the agency:"]
[]
[null,null,null,"Enter the total number of full-time staff employed by the agency:"]
[]
[null,null,null,"Briefly describe the agency's mission:"]
[]
[]
[]
[null,null,null,"Board President (BP)"]
[]
[null,null,null,"BP Name:"]
[]
[null,null,null,"Address:"]
[null,null,null,null,null,null,null,null,null,"City",null,null,"State",null,"Zip",null,"County"]
[null,null,null,"Phone:"]
[]
[null,null,null,"Business Fax:"]
[]
[null,null,null,"Business Email:"]
[]
[null,null,null,"Does the Agency have a current or former homeless person on the board?"]
[]
[]
[null,null,null,"Executive Director (ED)"]
[]
[null,null,null,"ED Name:"]
[]
[null,null,null,"Address:"]
[null,null,null,null,null,null,null,null,null,"City",null,null,"State",null,"Zip",null,"County"]
[null,null,null,"Phone:"]
[]
[null,null,null,"Business Fax:"]
[]
[null,null,null,"Business Email:"]
[]
[]
[null,null,null,"Service Area"]
[]
[]
[null,null,null,"Select all counties that is a part of the Agency's service area:"]
[]
[]
[null,null,null,"Population of Service Area (2020 Census):"]
[]
[null,null,null,"Agency's Key Personnel  "]
[null,null,null,"Please list staff or proposed staff, whose job function plays a key role in the operation of the program.  Indicate if the staff member is a part- or full-time employee, and the number of years the staff person has been in the position.  Attach a resume for each key staff member.   "]
[null,null,null,"Name",null,null,"Title",null,null,null,"Phone",null,null,null,"# of Yrs in this position",null,"Employment"]
[]
[]
[]
[]
[]
[]
[]
[]
[]
[]
[]
[]
[null,null,null,"Partnerships"]
[null,null,null,"Provide a list of organizations that the agency collaborates with to provide comprehensive services.  Attach a copy of the Memorandum of Understanding (MOU) or Letter of Commitments (preferred) for each partnership listed."]
[]
[null,null,null,"Organization",null,null,"Location",null,null,null,"Services Provided"]
[]
[]
[]
[]
[]
[]
[]
[]
[]
[]
[]
[]
[]
[]
[]
[]
[]
[]
[]
[]
[]
[]
[]
[]
[]
[]
[]
[]
[null,null,null,"Yes"]
[null,null,null,"No"]

{"sheet":"Eligibility","index":4,"n_rows":27,"n_cols":15,"rows_kept":27,"cut":false,"hidden":false,"merged":[[21,3,21,11],[22,3,22,11],[23,3,23,11],[24,3,24,11],[26,3,26,11],[25,3,25,11],[1,1,1,16],[15,3,15,11],[16,3,16,11],[17,3,17,11],[18,3,18,11],[19,3,19,11],[20,3,20,11],[3,1,3,15],[10,3,10,11],[11,3,11,11],[12,3,12,11],[13,3,13,11],[14,3,14,11]]}
[]
[null,"ESG Application"]
[]
[null,"II.   ELIGIBILITY"]
[null,null,null,null,null,null,null,null,null,null,null,null,null,null,"ESG PY26 ESG Application"]
[]
[]
[]
[null,null,"Answer the following questions:"]
[null,null,null,null,null,null,null,null,null,null,null,null,"Yes","No","N/A"]
[null,null,1,"Applicant has a written policy designed to ensure that their facility is free from illegal use, possession, or distribution of drugs or alcohol by its beneficiaries and employees 24 CFR 576.407(a).  Attach documentation."]
[null,null,2,"Applicant has a written policy to ensure that activities conducted under ESG conform to the nondiscrimination and equal opportunity requirements contained in 24 CFR Part  576.407(a).  Attach documentation."]
[null,null,3,"Does the agency make known that the use of their facility, assistance, and services are available to all on a nondiscriminatory basis, conducts affirmative outreach and ensure effective communication to persons with disabilities and persons with limited English proficiency? 24 CFR Part 576.407(a)(b). Attach evidence."]
[null,null,4,"Applicant has policy outlining the confidentiality of victims of domestic violence.  Attach documentation."]
[null,null,5,"If the applicant is a primarily religious organization, do you agree to provide all eligible activities under this program in a manner that is free from religious influences in accordance with 24 CFR Part 576.406."]
[null,null,6," Is the applicant a nonprofit organization in good standing with the State of Mississippi?"]
[null,null,7,"Is the amount of match, consisting of funds, value of service, value of building, or value of materials to be provided, equal to or greater than the ESG funds requested?"]
[null,null,8,"Applicant agrees to provide services and/or shelter to homeless individuals and families and those at risk of homelessness at least for the period during which ESG funds are provided."]
[null,null,9,"Applicant agrees that all housing, whether the homeless shelter or the rental housing units assisted with ESG, will meet the shelter and housing standards outlined under 24 CFR Part 576.403."]
[null,null,10,"Applicant agrees that all individuals and families, eligible for ESG will be given assistance to obtain housing, medical and mental health treatment, counseling, supervision, and other services essential for achieving independent living; including assistance in obtaining other federal, state, local and private assistance."]
[null,null,11,"Applicant involve homeless individuals and families, to the maximum extent practicable, in constructing, renovating, maintaining, and operating facilities assisted under ESG, in providing services assisted under ESG, and in providing services for occupants of families/individuals assisted under ESG (could include employment or volunteer services). [24 CFR 576.405(c); 24 CFR 576.500(q)]\t"]
[null,null,12,"Does your agency have the capacity and the available cash flow to effectively administer this grant based on the reimbursement requirements? Attach documentation (verification of other grants, IRS 990, financial statements, tax forms IRS 990)."]
[null,null,13,"Has the agency received any grants from MHC for which MHC has deobligated part or all of the grant or has issued a letter of findings that are unresolved associated with the use of an MHC-operated program within the last 3 years? If yes to this question, please attach an explanation."]
[null,null,14,"Only for agencies that previously received any MHC funding for projects. \n\nHas the agency always followed the terms of its contract to include meeting expenditure deadlines and timely RFC submissions? If No to this question, please attach an explanation. "]
[null,null,15,"Does the agency have a certification of approval from the unit of general purpose local government for the geographic area in which Emergency Shelter activities were carried out."]
[null,null,16,"Does the subrecipient provide services to ineligible alien(s) who entered the United States illegally or is otherwise unlawfully present in the United States?"]
[null,null,17,"Has your agency, a non-federal entity, expended $750,000 or more in Federal awards during your fiscal year? If yes, attach a copy of your  single or program-specific audit conducted for that year in accordance with §200.501."]

{"sheet":"E.O. 14218","index":5,"n_rows":88,"n_cols":4,"rows_kept":88,"cut":false,"hidden":false,"merged":[[87,3,87,5],[8,2,11,11],[31,2,31,11],[32,2,32,11],[33,2,33,11],[34,2,34,11],[3,2,3,11],[4,2,4,11],[28,2,28,11],[13,2,13,11],[14,2,14,11],[16,2,16,11],[17,2,17,10],[20,2,20,11],[23,2,23,11],[24,2,24,11],[25,2,25,10],[26,2,26,11],[27,2,27,11]]}
[]
[]
[]
[null,null,"MISSISSIPPI HOME CORPORATION"]
[null,null,"EMERGENCY SOLUTIONS GRANT (ESG) PROGRAM"]
[null,"III.  Ending Taxpayer Subsidization of Open Borders"]
[]
[null,null,"Ending Taxpayer Subsidization of Open Borders"]
[null,null,"Executive Order 14218 limits ESG and other “federal public benefits” to American citizens and qualified aliens. Illegal aliens are neither citizens nor qualified aliens, and therefore are not eligible for ESG benefits. Subrecipients and contractors must follow all applicable laws related to the use of ESG funds. Additionally, subrecipients must verify that Federal public benefits are not being provided to an ineligible alien who entered the United States illegally or is otherwise unlawfully present in the United States. "]
[]
[]
[]
[]
[]
[]
[]
[]
[]
[]
[]
[]
[]
[]
[]
[]
[]
[]
[]
[]
[]
[]
[]
[]
[]
[]
[]
[]
[]
[]
[]
[]
[]
[]
[]
[]
[]
[]
[]
[]
[]
[]
[]
[]
[]
[]
[]
[]
[]
[]
[]
[]
[]
[]
[]
[]
[]
[]
[]
[]
[]
[]
[]
[null,null,null,"Smead® Pressboard Fastener Folders With SafeSHIELD® Fasteners, 3\" Expansion, Legal Size, 60% Recycled, Gray/Green, Box Of 25 Item # 935783"]
[]
[]
[]
[]
[]
[]
[]
[]
[]
[]
[]
[]
[]
[]
[null,null,null,"<GO BACK>"]

{"sheet":"RISK ASSESSMENT","index":6,"n_rows":84,"n_cols":4,"rows_kept":84,"cut":false,"hidden":false,"merged":[[19,2,19,11],[20,2,20,11],[21,2,21,10],[22,2,22,11],[83,3,83,5],[23,2,23,11],[24,2,24,11],[27,2,27,11],[28,2,28,11],[29,2,29,11],[30,2,30,11],[3,2,3,11],[4,2,4,11],[8,2,13,11],[14,2,14,11],[16,2,16,11]]}
[]
[]
[]
[null,null,"MISSISSIPPI HOME CORPORATION"]
[null,null,"Agency High Risk and Financial Controls Assessment"]
[null,"IV.   RISK ASSESSMENT"]
[]
[null,null,"Policy: Agency High Risk and Financial Controls Assessment"]
[null,null,"\nAll agencies applying for federal funding are required to complete the following questionnaire to assess their financial controls and determine their risk level. \nThe risk levels are categorized as High Risk, Moderately High Risk, or Low Risk.\n\nRequirements:\n\nCompletion of Questionnaire: \nAgencies must thoroughly complete the provided questionnaire, ensuring all questions are answered accurately.\n\nSupporting Documentation:\nAgencies must submit supporting documentation as specified within the questionnaire to validate their responses.\n\nRisk Designation: \nBased on the responses and documentation, agencies will be designated as High Risk, Moderately High Risk, or Low Risk by MHC.\n\nHigh Risk Agencies:\nAgencies designated as High Risk must provide a detailed disclosure of the concerns identified in the questionnaire as an attachment titled \"Risk Assessment Certification\". The High Risk Assessment Certification must be signed by the agency's Executive Director. \n\nThe justification for each concern must also include the specific measures the agency is implementing to mitigate these risks.\n\n\nThis assessment is crucial in ensuring that agencies have the necessary financial controls in place to manage federal funding effectively.\n\n\n"]
[]
[]
[]
[]
[]
[]
[]
[]
[]
[]
[]
[]
[]
[]
[]
[]
[]
[]
[]
[]
[]
[]
[]
[]
[]
[]
[]
[]
[]
[]
[]
[]
[]
[]
[]
[]
[]
[]
[]
[]
[]
[]
[]
[]
[]
[]
[]
[]
[]
[]
[]
[]
[]
[]
[]
[]
[]
[]
[]
[null,null,null,"Smead® Pressboard Fastener Folders With SafeSHIELD® Fasteners, 3\" Expansion, Legal Size, 60% Recycled, Gray/Green, Box Of 25 Item # 935783"]
[]
[]
[]
[]
[]
[]
[]
[]
[]
[]
[]
[]
[]
[]
[null,null,null,"<GO BACK>"]

{"sheet":"RISK Questions","index":7,"n_rows":70,"n_cols":28,"rows_kept":70,"cut":false,"hidden":false,"merged":[[53,4,53,7],[53,10,53,15],[6,2,6,15],[4,2,4,16],[41,2,41,15],[13,3,13,15],[16,3,16,15],[21,2,21,15],[46,2,46,15],[30,3,30,15],[15,3,15,4],[32,3,32,4],[34,3,34,5],[8,3,8,15],[25,3,25,15],[27,3,27,15],[3,2,3,15],[4,19,4,22]]}
[]
[]
[]
[null,null,"MISSISSIPPI HOME CORPORATION"]
[null,null,"Agency High Risk and Financial Controls Assessment",null,null,null,null,null,null,null,null,null,null,null,null,null,null,null,null,"Risk Level"]
[]
[null,null,"I.  Financial Controls",null,null,null,null,null,null,null,null,null,null,null,null,null,null,null,null,"High","Moderate","Low","No Risk"]
[null,null,null,null,null,null,null,null,null,null,null,null,null,null,null,null,null,null,null,null,null,null,null,null,null,null,null,"Yes"]
[null,null,1,"Does the agency have fiscal/financial policies and procedures that govern the management of grant funds? Submit a copy of the policy.",null,null,null,null,null,null,null,null,null,null,null,null,null,null,null,null,null,null,null,null,null,null,null,"No"]
[null,null,null,null,null,null,null,null,null,null,null,null,null,null,null,null,null,null,null,{"$f":"IF(D10=\"No\",\"x\",\"\")","v":""},null,{"$f":"IF(D10=\"Yes\",\"x\",\"\")","v":""}]
[null,null,2,"Does the agency have multiple state or federal grant funds?",null,null,null,null,null,null,null,null,null,null,null,null,null,null,null,null,null,null,"x"]
[null,null,null,null,null,null,null,null,null,null,null,null,null,null,null,null,null,null,null,null,null,null,null,null,null,null,null,"Automatic financial system"]
[null,null,3,"If YES to question number 2, how does the agency keep grant funds clearly separated?",null,null,null,null,null,null,null,null,null,null,null,null,null,null,null,null,null,null,null,null,null,null,null,"Manual system"]
[null,null,null,null,null,null,null,null,null,null,null,null,null,null,null,null,null,null,null,null,null,null,null,null,null,null,null,"Other"]
[null,null,4,"What system(s) does the agency  use to manage its finances?"]
[null,null,null,null,null,null,null,null,null,null,null,null,null,null,null,null,null,null,null,{"$f":"IF(OR(D16=\"Manual system\",D16=\"Other\"),\"x\",\"\")","v":""},null,{"$f":"IF(D16=\"Automatic financial system\",\"x\",\"\")","v":""},null,null,null,null,null,"Within 9 months after the agency’s fiscal year"]
[null,null,5,"Can the agency’s accounting system accurately track expenditures and grant balances?",null,null,null,null,null,null,null,null,null,null,null,null,null,null,null,null,null,null,null,null,null,null,null,"12 months after the agency’s fiscal year"]
[null,null,null,null,null,null,null,null,null,null,null,null,null,null,null,null,null,null,null,null,null,null,"x",null,null,null,null,"24 months after the agency’s fiscal year"]
[null,null,6,"Can the agency’s accounting system accurately track MATCH as required for the ESG program?",null,null,null,null,null,null,null,null,null,null,null,null,null,null,null,null,null,null,null,null,null,null,null,"Other"]
[null,null,null,null,null,null,null,null,null,null,null,null,null,null,null,null,null,null,null,null,null,null,"x"]
[]
[null,null,"II.   Accounting Audit ",null,null,null,null,null,null,null,null,null,null,null,null,null,null,null,null,"High","Moderate","Low","No Risk",null,null,null,null,"Presented Fairly, except…(provide additional information)"]
[null,null,null,null,null,null,null,null,null,null,null,null,null,null,null,null,null,null,null,null,null,null,null,null,null,null,null,"Fair"]
[null,null,1,"Did the agency spend $1,000,000 in federal funds or more during the last Fiscal Year?",null,null,null,null,null,null,null,null,null,null,null,null,null,null,null,null,null,null,null,null,null,null,null,"Unable to Express an Opinion"]
[null,null,null,null,null,null,null,null,null,null,null,null,null,null,null,null,null,null,null,null,null,null,"x",null,null,null,null,"Deficiency/Deficiencies"]
[null,null,2,"If no to question #1, did the agency complete any program-specific audits during the last fiscal year? If so, please attach a copy of the program-specific audit results. ",null,null,null,null,null,null,null,null,null,null,null,null,null,null,null,null,null,null,null,null,null,null,null,"Noncompliance"]
[null,null,null,null,null,null,null,null,null,null,null,null,null,null,null,null,null,null,null,null,null,null,"x",null,null,null,null,"Other"]
[null,null,3,"If yes to question #1, did the agency complete a Single Audit within the timeframe set by 2 CFR 200? If no to #1, skip this question. "]
[null,null,null,null,null,null,null,null,null,null,null,null,null,null,null,null,null,null,null,{"$f":"IF(D29=\"No\",\"x\",\"\")","v":""},null,{"$f":"IF(D29=\"Yes\",\"x\",\"\")","v":""},null,null,null,null,null,"High Risk"]
[null,null,4,"What is the name of the agency that completed the Single Accounting?",null,null,null,null,null,null,null,null,null,null,null,null,null,null,null,null,null,null,null,null,null,null,null,"Moderately High Risk"]
[null,null,null,null,null,null,null,null,null,null,null,null,null,null,null,null,null,null,null,null,null,null,"x",null,null,null,null,"Low Risk"]
[null,null,5,"When was the agency Single Accounting Audit completed?"]
[null,null,null,null,null,null,null,null,null,null,null,null,null,null,null,null,null,null,null,{"$f":"IF(OR(D33=\"24 months after the agency’s fiscal year\",D33=\"Other\"),\"x\",\"\")","v":""},null,{"$f":"IF(OR(D33=\"Within 9 months after the agency’s fiscal year\",D33=\"12 months after the agency’s fiscal year\"),\"x\",\"\")","v":""}]
[null,null,6,"What were the results of the Single Accounting Audit?"]
[null,null,null,null,null,null,null,null,null,null,null,null,null,null,null,null,null,null,null,{"$f":"IF(OR(D35=\"Unable to Express an Opinion\",D35=\"Deficiency/Deficiencies\"),\"x\",\"\")","v":""},{"$f":"IF(D35=\"Fair\",\"x\",\"\")","v":""},{"$f":"IF(OR(D35=\"Presented Fairly\",D35=\"Presented Fairly, except…(provide additional information)\"),\"x\",\"\")","v":""}]
[null,null,7,"Did the agency have to repay funds due to a program audit or monitoring finding in the past two years?"]
[null,null,null,null,null,null,null,null,null,null,null,null,null,null,null,null,null,null,null,{"$f":"IF(D37=\"Yes\",\"x\",\"\")","v":""},null,{"$f":"IF(D37=\"No\",\"x\",\"\")","v":""}]
[null,null,8,"Has the agency met compliance requirements for federal grants expended in the last two years?"]
[null,null,null,null,null,null,null,null,null,null,null,null,null,null,null,null,null,null,null,{"$f":"IF(D39=\"No\",\"x\",\"\")","v":""},null,{"$f":"IF(D39=\"Yes\",\"x\",\"\")","v":""}]
[]
[]
[null,null,"IV.  Staff",null,null,null,null,null,null,null,null,null,null,null,null,null,null,null,null,{"$f":"IF(T46=3,\"High\",\"Low\")","v":"Low"}]
[null,null,null,null,null,null,null,null,null,null,null,null,null,null,null,null,null,null,null,null,null,null,null,null,null,null,null,"1 to 3"]
[null,null,1,"Did key staff member(s) in your financial, programing, or executive development change within the last _________ years?",null,null,null,null,null,null,null,null,null,null,null,null,null,null,null,null,null,null,null,null,null,null,null,"4 to 6"]
[null,null,null,null,null,null,null,null,null,null,null,null,null,null,null,null,null,null,null,{"$f":"IF(D45=\"1 to 3\",\"x\",\"\")","v":""},{"$f":"IF(D45=\"4 to 6\",\"x\",\"\")","v":""},{"$f":"IF(OR(D45=\"7 to 10\",D45=\"More than 10\"),\"x\",\"\")","v":""},null,null,null,null,null,"7 to 10"]
[null,null,null,null,null,null,null,null,null,null,null,null,null,null,null,null,null,null,null,null,null,null,null,null,null,null,null,"More than 10"]
[null,null,"III.  Results",null,null,null,null,null,null,null,null,null,null,null,null,null,null,null,null,"Overall:",{"$f":"IF(OR(T10=\"x\",T16=\"x\",T29=\"x\",T33=\"x\",T33=\"x\",T35=\"x\",T37=\"x\",T39=\"x\",T45=\"x\"),\"High Risk\")","v":false}]
[]
[null,null,null,"Survey results, agency risk designation.  "]
[]
[null,null,null,{"$f":"IF(U47=\"High Risk\", \"High Risk\", \"Low Risk\")","v":"Low Risk"}]
[]
[]
[null,null,null,"Completed by: ",null,null,null,null,null,"Title:"]
[]
[]
[]
[]
[]
[]
[]
[]
[]
[]
[]
[]
[]
[]
[null,null,null,"Yes"]
[null,null,null,"No"]

{"sheet":"Capacity and Experience","index":8,"n_rows":62,"n_cols":13,"rows_kept":62,"cut":false,"hidden":false,"merged":[[63,2,75,12],[76,2,76,10],[1,1,1,13],[2,1,2,13],[6,2,6,12],[8,2,59,12],[60,2,60,11],[61,2,61,12]]}
[]
[null,"V. Capacity and Experience "]
[null,"Capacity and Experience "]
[null,"",{"$f":"('Applicant Info'!E19:K19)","v":0},0,0,0,0,0,0,null,null,null,"FY  2026 ESG APPLICATION"]
[null,null,"Capacity and Experience  Up to 10 points"]
[]
[null,null,"Describe your agency’s experience and capacity to successfully administer ESG or similar federal programs, including staff qualifications, program management, financial oversight, regulatory compliance, and experience serving individuals and families experiencing or at risk of homelessness. (Limited to 10,000 characters.)"]
[]
[]
[]
[]
[]
[]
[]
[]
[]
[]
[]
[]
[]
[]
[]
[]
[]
[]
[]
[]
[]
[]
[]
[]
[]
[]
[]
[]
[]
[]
[]
[]
[]
[]
[]
[]
[]
[]
[]
[]
[]
[]
[]
[]
[]
[]
[]
[]
[]
[]
[]
[]
[]
[]
[null,null,"If you are a returning applicant, what changes or improvements might you make to your proposed ESG program in the upcoming year?  (Limited to 5,000 characters.)"]

{"sheet":"Project Description","index":9,"n_rows":7,"n_cols":13,"rows_kept":7,"cut":false,"hidden":false,"merged":[[1,1,1,13],[2,1,2,13],[6,2,6,12],[8,2,59,12],[60,2,60,11]]}
[]
[null,"VI. Project Description and Program Plan  "]
[null,"Project Description"]
[null,"",{"$f":"('Applicant Info'!E19:K19)","v":0},0,0,0,0,0,0,null,null,null,"FY  2026 ESG APPLICATION"]
[null,null,"Project Description  Up to 5 points"]
[]
[null,null,"Describe your proposed project: include project goals, expected outcomes and measures, gaps you intend to fill in the community, and partnerships established to effectively operate the project. Cite specific, local evidence of the needs for the services proposed using PIT data and other available data. (Limited to 10,000 characters.)"]

{"sheet":"Project Info ESG Components","index":10,"n_rows":101,"n_cols":31,"rows_kept":101,"cut":false,"hidden":false,"merged":[[105,3,105,13],[105,16,105,17],[45,3,45,20],[83,3,83,20],[84,3,84,20],[86,3,86,20],[87,3,87,20],[89,3,89,20],[76,3,76,13],[98,3,98,20],[101,3,101,20],[97,3,97,21],[100,3,100,20],[81,3,81,20],[90,3,90,20],[92,3,92,20],[93,3,93,20],[50,3,50,20],[51,3,51,20],[78,13,78,14],[1,1,1,22],[2,1,2,22],[9,5,9,12],[14,3,14,9],[15,3,15,9],[4,3,4,12],[32,12,32,13],[30,13,30,14],[58,12,58,13],[60,18,60,20],[63,6,63,7],[42,3,42,20],[6,3,7,21],[66,3,66,4],[47,3,47,20],[48,3,48,20],[53,3,53,20],[54,3,54,20],[72,3,72,21],[71,3,71,21],[69,3,69,12],[44,3,44,20],[39,3,39,20]]}
[]
[null,"VI.   Program Plan and Information "]
[null,"The Project Information section as well as the Project Narrative must accurately describe the proposed project and how the requested ESG funds will be used.  Applicants must provide clear and concise answers to all questions."]
[null,{"$f":"IF('Applicant Info'!E19=\"\",\"\",'Applicant Info'!E19)","v":""},"Program Plan and Information Up to 10 points ",null,null,null,null,null,null,null,null,null,null,null,null,null,null,null,null,null,{"$f":"'Threshold Requirements'!J4","v":"ESG PY 2026"}]
[null,null,null,"Are ESG  funds being requested to support a Street Outreach and/or Emergency Shelter project? \n\n      Yes    If yes, please complete this section.\n      No     If no, please skip A go to section B."]
[]
[null,null,null,"Mississippi Home Corporation (MHC) will not fund emergency shelters programs that are not connected, directly or indirectly, to a rapid rehousing or a permanent housing program."]
[]
[]
[null,null,"Shelter Name:"]
[]
[]
[null,null,"Type of services to be provided?  (Check all that apply.)"]
[]
[null,null,null,"Services for At-risk Children/Youth/Victim ",null,null,null,null,null,null,null,"Adult Education"]
[null,null,null,"of Human Trafficking",null,null,null,null,null,null,null,"Utility Assistance"]
[null,null,null,"Service for Persons with Serious Mental Illness",null,null,null,null,null,null,null,"Financial Literacy"]
[null,null,null,"Homeless Services",null,null,null,null,null,null,null,"Services for Persons Recently Incarcerate or on Parole"]
[null,null,null,"Services for Victims of Domestic Violence",null,null,null,null,null,null,null,"Service for Persons with Substance Abuse Problems"]
[null,null,null,"Emergency Food Assistance",null,null,null,null,null,null,null,"Other General Low/Moderate Income Services"]
[null,null,null,null,null,null,null,null,null,null,null,"Job Training and Employment Services "]
[]
[]
[null,null,"Project Type"]
[]
[null,null,"A.  Emergency Shelter / Street Outreach"]
[]
[null,null,"1.","Site Control (Shelter only)"]
[]
[null,null,null,"Applicant owns the property.",null,null,null,null,null,null,null,"Applicant has a lease on the property."]
[null,null,null,"Date acquired:",null,null,null,null,null,null,null,"Expiration date:"]
[]
[null,null,"2.","What is the average number of clients served annually?"]
[]
[null,null,3,"Does your agency conduct street outreach?"]
[]
[null,null,4,"Is the proposed shelter a low-barrier shelter? "]
[null,null,null,null,null,null,null,null,null,null,null,null,null,null,null,null,null,null,null,null,null,null,null,null,"The Basics: Introduction to Low-Barrier Emergency Shelter"]
[null,null,5,"Describe your shelter and/or street outreach program(s)’ intake process."]
[]
[]
[null,null,"6.","How do you keep client files confidential?  Do you have a system or procedures in place?\t "]
[]
[]
[null,null,"7.","What are your eligibility requirements to access your emergency shelter and what are the reasons someone may be turned away or asked to leave your shelter?"]
[]
[]
[null,null,8,"Explain any requirements clients must meet to remain in the shelter after entry. (Limited to 1,200 characters.)"]
[]
[]
[null,null,9,"Will these Emergency Shelter/Street Outreach services be integrated with other programs serving homeless persons and with mainstream resources? If so, how? (Limited to 1,200 characters.)"]
[]
[]
[null,null,10,"If this Emergency Shelter will not offer bed space to Men / Women / Families / Unaccompanied Youth, how will those not accepted into the Shelter be assisted? (Limited to 1,200 characters.)"]
[]
[]
[null,null,11,"Average number of days that clients stay in the shelter:"]
[]
[null,null,12,"Percentage of clients that exited to permanent housing?"]
[]
[null,null,13,"What is the number of unsheltered homeless persons engaged through Street Outreach annually?"]
[]
[null,null,14,"What is the average number of unsheltered persons engaged and connected to emergency shelter, housing, or"]
[null,null,null,"critical services?",null,null,null,null,null,null,null,null,null,null,null,null,null,null,null,null,null,null,null,null,null,null,null,null,null,null,"Provide housing placement directly "]
[null,null,null,null,null,null,null,null,null,null,null,null,null,null,null,null,null,null,null,null,null,null,null,null,null,null,null,null,null,null,"Provide housing placement through partnerships "]
[null,null,15,"Will your agency provide permanent housing placement directly, or will it be done through partnerships with other housing agencies? "]
[]
[]
[null,null,16,"If permanent housing is provided through community partnerships, please provide the agency's name along with an MOU or Letter of Commitment."]
[]
[]
[null,null,17,"Explain the shelter’s methods for reducing the length of stay, and describe the strategies used to reduce the length of time shelter residents remain homeless. (Limited to 1,200 characters.)"]
[]
[]
[]
[null,null,"B.  Rapid Rehousing / Homeless Prevention"]
[null,null,null,"Are ESG funds being requested to support a Rapid Rehousing and/or Homeless Prevention project? \nAll emergency shelter programs must have a rapid rehousing program component. \n      Yes    If yes, please complete this section.\n      No     If no, please skip B  go to section C."]
[]
[null,null,"1.","What is the average number of persons the program serves annually?"]
[]
[null,null,"2.","Describe your rapid rehousing and homeless prevention program(s)’ intake process."]
[]
[]
[null,null,"3.","Describe how housing is located and landlords are identified.   Describe how you use resources within the community to lower barriers to accessing permanent housing."]
[]
[]
[null,null,"4.","What types of methods do you use to develop a housing and services plan for each client?  Describe how direct-client assistance is determined, including its frequency.  Describe how you determine when and how an exit plan is developed."]
[]
[]
[null,null,"5.","Describe how the proposed program in this application will increase exits to permanent housing.  Describe your agency's housing stabilization practices and what case management services you offer to assist client(s) in maintaining permanent housing.  What procedure does the proposed program have in place to prevent future evictions?"]
[]
[]
[null,null,"6."," Describe how you monitor returns to homelessness after program discharge."]
[]
[]
[null,null,"C. HMIS or Equivalent Database ",null,null,null,null,null,null,"Up to 5 points"]
[]
[null,null,"1.","Describe how these funds will contribute to your ability to collect, analyze, and report data.  If HMIS is not being used, identify the database system used for reporting.  "]
[]
[]
[null,null,"2.","Describe how your agency uses local coordinated entry systems to prioritize housing services to qualified applicants."]

{"sheet":"Collaboration and Partnerships ","index":11,"n_rows":36,"n_cols":30,"rows_kept":36,"cut":false,"hidden":false,"merged":[[37,3,37,13],[37,16,37,17],[31,3,31,20],[32,3,32,20],[1,1,1,22],[7,5,7,12],[24,3,24,21],[5,2,5,13],[25,3,25,20],[27,3,27,20],[28,3,28,20],[2,1,2,22],[3,1,3,22],[34,3,35,20],[36,3,36,5]]}
[]
[null,"VII.   Collaboration and Partnerships  "]
[null,"The Project Information section, as well as the Project Description, must accurately describe the proposed project and how the requested ESG funds will be used.  Applicants must provide clear and concise answers to all questions."]
[null,"The following supportive services activities are eligible under ESG Shelter, Outreach, Rapid Rehousing, and Homeless Prevention. \nAll activities must be verified as services needed to obtain and/or secure stable housing. "]
[null,{"$f":"IF('Applicant Info'!E19=\"\",\"\",'Applicant Info'!E19)","v":""},"Collaboration and Partnerships  Up to 10 points ",null,null,null,null,null,null,null,null,null,null,null,null,null,null,null,null,null,{"$f":"'Threshold Requirements'!J4","v":"ESG PY 2026"}]
[null,null,"Are ESG funds being requested to provide Support Services allowable under Shelter, Outreach, Housing Stabilization project activities? \n\n       Yes    If yes, please complete this section.\n       No     If no, please skip D & E and go to Proposed Outcome Measurements."]
[]
[]
[]
[null,null,"D. Collaboration and Partnerships "]
[null,null,"Type of services to be provided?  (Check all that apply.)"]
[null,null,"Activities "]
[null,null,null,"Outreach",null,null,null,null,null,null,null,"Housing stabilization "]
[null,null,null,"Essential Services ",null,null,null,null,null,null,null,"Relocation assistance "]
[null,null,null,"Emergency health services",null,null,null,null,null,null,null,"Mediation "]
[null,null,null,"Emergency mental health services",null,null,null,null,null,null,null,"Legal services"]
[null,null,null,"Emergency Shelter",null,null,null,null,null,null,null,"Credit repair through credit counseling "]
[null,null,null,"Education services",null,null,null,null,null,null,null,"Utility Assistance"]
[null,null,null,"Employment assistance and job training",null,null,null,null,null,null,null,"Rental Assistance"]
[null,null,null,"Outpatient health services"]
[null,null,null,"Life skills training"]
[]
[null,null,"1.","What is the average number of clients served annually?"]
[]
[null,null,"2.","Describe how your agency will use eligible support services, as necessary, to help participants obtain and maintain housing. (Limited to 2,500 characters.)"]
[]
[]
[null,null,"3","Describe your experience with serving low-income populations, including services provided to those experiencing homelessness or at risk of becoming homeless. (Limited to 2,500 characters.)"]
[]
[]
[]
[null,null,"4.","Describe your organization’s experience in coordinating services and working collaboratively with other providers in the community so that clients may access resources to help them achieve greater housing stability. (Limited to 2,500 characters.)"]
[]
[]
[null,null,5,"Does your agency currently have relationships with affordable housing entities, including Low-Income Housing Tax Credits (LIHTC) and/or Housing Authorities? Agencies are required to provide supporting documentation, including Letters of Commitment or Memoranda of Understanding (MOU). ",null,null,null,null,null,null,null,null,null,null,null,null,null,null,null,null,null,null,null,null,null,null,null,null,null,"Yes"]
[null,null,null,null,null,null,null,null,null,null,null,null,null,null,null,null,null,null,null,null,null,null,null,null,null,null,null,null,null,"No"]

{"sheet":"Supportive Activities","index":12,"n_rows":13,"n_cols":20,"rows_kept":13,"cut":false,"hidden":false,"merged":[[0,1,0,4]]}
[null,"VIII.   SUPPORTIVE ACTIVITIES"]
[null,"Section E.",null,null,null,null,null,null,null,null,null,null,null,null,null,null,null,null,null,0]
[null,"The following activities are supportive services activities eligible under ESG Shelter, Outreach, Rapid Rehousing, and Homeless Prevention. \nAll activities must be verified as services needed to obtain and/or secure stable housing. \n\nIdentify activities that you propose to provide using ESG funds. "]
[null,null,"Yes","No","N/A"]
[null,"A. Emergency health services. (i) Eligible costs are for the direct outpatient treatment of medical conditions\nand are provided by licensed medical professionals operating in community-based settings, including\nstreets, parks, and other places where unsheltered homeless people are living. 24 CFR 576.101 (a) (3)"]
[null,"B. Emergency mental health services. (i) Eligible costs are the direct outpatient treatment by licensed\nprofessionals of mental health conditions operating in community-based settings, including streets, parks,\nand other places where unsheltered people are living. 24 CFR 576.101 (a) (4)"]
[null,"C. Education services. When necessary for the program participant to obtain and maintain housing, the\ncosts of improving knowledge and basic educational skills are eligible. Services include instruction or\ntraining in consumer education, health education, substance abuse prevention, literacy, English as a Second\nLanguage, and General Educational Development (GED). Component services or activities are screening,\nassessment and testing; individual or group instruction; tutoring; provision of books, supplies and\ninstructional material; counseling; and referral to community resources. 24 CFR 576.102 (a) (1) (iii)"]
[null,"D. Employment assistance and job training. The costs of employment assistance and job training programs\nare eligible, including classroom, online, and/or computer instruction; on-the-job instruction; and services\nthat assist individuals in securing employment, acquiring learning skills, and/or increasing earning potential.\nThe cost of providing reasonable stipends to program participants in employment assistance and job training\nprograms is an eligible cost. Learning skills include those skills that can be used to secure and retain a job,\nincluding the acquisition of vocational licenses and/or certificates. Services that assist individuals in securing\nemployment consist of employment screening, assessment, or testing; structured job skills and job-seeking\nskills; special training and tutoring, including literacy training and prevocational training; books and\ninstructional material; counseling or job coaching; and referral to community resources. 24 CFR 576.102  (a) (1)(iv)"]
[null,"E. Outpatient health services. Eligible costs are for the direct outpatient treatment of medical conditions and\nare provided by licensed medical professionals. Emergency Solutions Grant (ESG) funds may be used only\nfor these services to the extent that other appropriate health services are unavailable within the community.\nEligible treatment consists of assessing a program participant's health problems and developing a treatment\nplan; assisting program participants to understand their health needs; providing directly or assisting program\nparticipants to obtain appropriate medical treatment, preventive medical care, and health maintenance\nservices, including emergency medical services; providing medication and follow-up services; and providing\npreventive and noncosmetic dental care. 24 CFR 576.102 (a) (1)(v)"]
[null,"F. Life skills training. The costs of teaching critical life management skills that may never have been\nlearned or have been lost during the course of physical or mental illness, domestic violence, substance use,\nand homelessness are eligible costs. These services must be necessary to assist the program participant to\nfunction independently in the community. Component life skills training are budgeting resources, managing\nmoney, managing a household, resolving conflict, shopping for food and needed items, improving nutrition,\nusing public transportation, and parenting. 24 CFR 576.102 (a) (1)(vii)"]
[null,"G. Mediation. ESG funds may pay for mediation between the program participant and the owner or\nperson(s) with whom the program participant is living, provided that the mediation is necessary to prevent\nthe program participant from losing permanent housing in which the program participant currently resides. 24 CFR 576.105(b)(3)"]
[null,"H. Legal services. ESG funds may pay for legal services, as set forth in § 576.102(a)(1)(vi), except that the\neligible subject matters also include landlord/tenant matters, and the services must be necessary to resolve\na legal problem that prohibits the program participant from obtaining permanent housing or will likely result in the program participant losing the permanent housing in which the program participant currently resides. 24 CFR 576.105(b)(4)"]
[null,"H. Credit repair. ESG funds may pay for credit counseling and other services necessary to assist program\nparticipants with critical skills related to household budgeting, managing money, accessing a free personal\ncredit report, and resolving personal credit problems. This assistance does not include the payment or\nmodification of a debt. 24 CFR 576.105(b) (5)"]

{"sheet":" Needs Analysis","index":13,"n_rows":37,"n_cols":24,"rows_kept":37,"cut":false,"hidden":false,"merged":[[23,2,23,15],[28,3,31,15],[38,3,54,15],[36,3,36,15],[1,1,1,16],[2,1,2,16],[10,9,10,10],[7,3,8,10],[10,14,10,15],[10,12,10,13],[11,2,11,15],[12,3,12,7],[12,8,12,10],[12,11,12,15],[13,3,13,4],[13,5,13,6],[13,8,14,8],[13,11,13,12],[13,13,13,14],[13,9,14,9],[13,10,14,10]]}
[]
[null,"IX.   NEEDS ANALYSIS"]
[null,"Proposed Performance Outcome Measurement should reflect the needs and goals expected to be met during the activity period.  "]
[null,{"$f":"IF('Applicant Info'!E19=\"\",\"\",'Applicant Info'!E19)","v":""},"Identified Need Up to 10 points:",null,null,null,null,null,null,null,null,null,null,null,null,{"$f":"'Threshold Requirements'!J4","v":"ESG PY 2026"}]
[]
[null,null,null,"Homeless Needs Inventory and Gap Analysis Table"]
[]
[null,null,null,"Evaluate the size and demographic composition of qualifying populations within the area you propose to serve. Applicants should use current data, including the Point In Time count, Coordinated Entry Data, or other data available through CoCs.\nSee notes in the cell for more information. "]
[]
[]
[]
[null,null,"Homeless"]
[null,null,null,"Current Housing/Shelter Inventory",null,null,null,null,"Homeless Population ",null,null,"Gap Analysis"]
[null,null,null,"Family",null,"Adults Only",null,"Vets","Homeless Family households (at least 1 child)","Adult households (without child)","Vets (households)","Family",null,"Adults Only",null,"Individuals/Fam"]
[null,null,null,"# of Beds","# of Units","# of Beds","# of Units","# of Beds",null,null,null,"# of Beds","# of Units","# of Beds","# of Units","Vets"]
[null,null,"Emergency Shelter",0,null,0,null,0]
[null,null,"Transitional Housing",0,null,0,null,0]
[null,null,"Permanent Supportive Housing",null,0,null,0,0]
[null,null,"Other Permanent Housing (RRH, SSVF)",null,0,null,0,0]
[null,null,"Sheltered Homeless",null,null,null,null,null,0,0,0]
[null,null,"Unsheltered Homeless",null,null,null,null,null,0,0,0]
[null,null,"At Risk of Homelessness",null,null,null,null,null,0,0,0]
[null,null,"Current Gap",{"$f":"(D16+D17)","v":0},{"$f":"(E16+E17+E18+E19)","v":0},{"$f":"(F16+F17+F18+F19)","v":0},0,0,{"$f":"(I20+I21+I22)","v":0},{"$f":"(J20+J21+J22)","v":0},0,{"$f":"(D23-I23)","v":0},{"$f":"(E23-I23)","v":0},{"$f":"(F23-J23)","v":0},{"$f":"(G23-J23)","v":0},{"$f":"(H23-K23)","v":0},null,null,null,null,null,null,null,"Yes"]
[null,null,"If your result shows a negative number (-#), then your community has more homeless than expected resources, leaving a potential gap. \nPlease note that MHC will also consider other services in the area that can help meet the needs of any identified gaps. \nIf your results show a positive number (#), then during the last inventory count, there were enough resources to serve the identified homeless, and there is no gap in resources per the data. \t",null,null,null,null,null,null,null,null,null,null,null,null,null,null,null,null,null,null,null,null,"No"]
[]
[null,null,1,"Are there additional service providers in your community (identified service area) offering similar shelter and housing services?"]
[]
[null,null,2,"If so, what is the name of the agency or agencies?"]
[]
[]
[]
[]
[]
[null,null,3,"Do you partner with the identified agency or agencies? If so, provide an MOU or a Letter of Commitment."]
[]
[]
[null,null,4,"Describe the need for housing and services resources through the Emergency Solutions Grant (ESG) in your community and how these resources will meet the identified needs.\n(Limited to 2,500 characters.)"]

{"sheet":"Proposed Goals Outcome ","index":14,"n_rows":30,"n_cols":19,"rows_kept":30,"cut":false,"hidden":false,"merged":[[24,13,24,14],[24,15,24,16],[14,3,14,7],[15,3,15,7],[16,3,16,7],[22,2,22,18],[24,9,24,10],[24,11,24,12],[24,17,24,18],[17,3,17,8],[13,3,13,8],[1,1,1,19],[2,1,2,19],[11,9,11,10],[11,11,11,12],[11,13,11,14],[11,15,11,16],[11,17,11,18],[5,2,5,18],[9,2,9,19],[6,2,7,18]]}
[]
[null,"X.   PROPOSED PERFORMANCE OUTCOME MEASUREMENTS"]
[null,"Proposed Performance Outcome Measurement should reflect the needs and goals expected to be met during the activity period.  (Enter \"N/A\" for indicators that do not apply to your project)."]
[null,{"$f":"IF('Applicant Info'!E19=\"\",\"\",'Applicant Info'!E19)","v":""},"Program Goals & Outcomes Up to 10 points",null,null,null,null,null,null,null,null,null,null,null,null,null,null,null,{"$f":"'Threshold Requirements'!J4","v":"ESG PY 2026"}]
[null,null,"Program Goals and Outcomes"]
[null,null,"Describe your program goals and how those goals align with the Federal Strategic Plan to Prevent and End Homelessness and MHC's Five-Year Consolidated Plan. Your goals must be achievable and measurable. For example, you should aim for a concrete decrease in the community homeless population, a significant increase in income, and a specified number of households successfully transitioning to permanent housing.  (Limited to 3,500 characters.)"]
[]
[]
[null,null,"Persons/Households to be Served"]
[null,null,"Enter the expected outcome for the number of persons and/or households (HH) to be served within the grant period for each quarter."]
[]
[null,null,null,null,null,null,null,null,null,"Q1",null,"Q2",null,"Q3",null,"Q4",null,"TOTAL"]
[null,null,null,null,null,null,null,null,null,"Persons","HH","Persons","HH","Persons","HH","Persons","HH","Persons","HH"]
[null,null,null,"Proposed number of homeless individuals and/or households that will be served by Street Outreach and/or related support services?",null,null,null,null,null,null,null,null,null,null,null,null,null,{"$f":"J14+L14+N14+P14","v":0},{"$f":"K14+M14+O14+Q14","v":0}]
[null,null,null,"Proposed number of homeless individuals and/or households that will be served by Rapid-Re-housing and/or related support services?",null,null,null,null,null,null,null,null,null,null,null,null,null,{"$f":"J15+L15+N15+P15","v":0},{"$f":"K15+M15+O15+Q15","v":0}]
[null,null,null,"Proposed number of individuals and/or households that will be served by Homeless Prevention and/or related support services?",null,null,null,null,null,null,null,null,null,null,null,null,null,{"$f":"J16+L16+N16+P16","v":0},{"$f":"K16+M16+O16+Q16","v":0}]
[null,null,null,"Proposed number of individuals and or households that will be served by emergency shelter and/or related support services/essential services?",null,null,null,null,null,null,null,null,null,null,null,null,null,{"$f":"J17+L17+N17+P17","v":0},0]
[null,null,null,"Total Individuals/Households to be served:",null,null,null,null,null,{"$f":"SUM(J14:J17)","v":0},{"$f":"SUM(K14:K17)","v":0},{"$f":"SUM(L14:L17)","v":0},0,{"$f":"SUM(N14:N17)","v":0},0,0,0,{"$f":"SUM(R14:R17)","v":0},{"$f":"SUM(S14:S17)","v":0}]
[]
[]
[]
[null,null,"Income Level of Persons/Households to be Served"]
[null,null,"Enter the expected number or percentage of persons for each income level to be served within the grant period for each quarter."]
[]
[null,null,null,null,null,null,null,null,null,"Q1",null,"Q2",null,"Q3",null,"Q4",null,"TOTAL"]
[null,null,null,null,null,null,null,null,null,"Number","Percent","Number","Percent","Number","Percent","Number","Percent","Number","Percent"]
[null,null,null,null,null,"Extremely Low Income (ELI)",null,null,null,null,null,null,null,null,null,null,null,{"$f":"J27+L27+N27+P27","v":0},{"$f":"K27+M27+O27+Q27","v":0}]
[null,null,null,null,null,"Low Income (LI)",null,null,null,null,null,null,null,null,null,null,null,{"$f":"J28+L28+N28+P28","v":0},0]
[null,null,null,null,null,"Moderate Income (MI)",null,null,null,null,null,null,null,null,null,null,null,{"$f":"J29+L29+N29+P29","v":0},0]
[null,null,null,null,null,"Total to be served:",null,null,null,{"$f":"SUM(J27:J29)","v":0},{"$f":"SUM(K27:K29)","v":0},0,0,0,0,0,0,0,0]

{"sheet":"Activities","index":15,"n_rows":129,"n_cols":18,"rows_kept":129,"cut":false,"hidden":false,"merged":[[128,3,128,20],[102,3,102,20],[107,2,107,18],[104,3,104,20],[103,3,103,20],[92,3,92,20],[93,2,93,6],[94,2,94,18],[90,3,90,19],[126,3,126,20],[123,4,123,20],[95,2,95,7],[96,2,96,18],[99,3,99,20],[100,2,101,2],[97,2,97,18],[98,2,98,18],[76,3,76,18],[79,2,79,6],[80,2,80,18],[84,3,84,18],[91,3,91,19],[71,3,71,18],[72,3,72,18],[73,3,73,18],[74,3,74,18],[75,3,75,18],[54,3,54,11],[55,4,55,17],[65,1,65,18],[67,2,67,6],[68,2,68,18],[1,1,1,18],[2,1,2,18],[19,3,19,6],[24,3,24,6],[32,3,32,16]]}
[]
[null,"XI.   ACTIVITIES"]
[null,"Activities funded under this section must comply with HUD's standards on participation, data collection, and reporting under a local HMIS.  Applicants should review 24 CFR, Part 576 and MHC's ESG Program Description for clarification and details on services."]
[null,{"$f":"IF('Applicant Info'!E19=\"\",\"\",'Applicant Info'!E19)","v":""},null,null,null,null,null,null,null,null,null,null,null,null,null,null,null,{"$f":"'Threshold Requirements'!J4","v":"ESG PY 2026"}]
[]
[]
[null,null,"1.  Population to be served:  (Select all that apply)"]
[]
[null,null,null,"Elderly",null,null,null,null,null,null,null,"Domestic Violence Victims"]
[null,null,null,"Homeless individuals and/or households",null,null,null,null,null,null,null,"Individuals and/or households with serious mental illness"]
[null,null,null,"At-risk of homelessness individuals and/or households",null,null,null,null,null,null,null,"Individuals and/or households with substance abuse issues"]
[null,null,null,"Low-Income individuals and/or households",null,null,null,null,null,null,null,"Victims of human trafficking"]
[null,null,null,"Homeless Youth",null,null,null,null,null,null,null,"Individuals exiting institutional settings"]
[null,null,null,"Chronic Homeless individuals and/or households",null,null,null,null,null,null,null,"Other (please explain in the Project Narrative)"]
[null,null,null,"Service for Persons with Serious Mental Illness",null,null,null,null,null,null,null,"Homeless Adults/Families"]
[null,null,null,"Emergency Food Assistance",null,null,null,null,null,null,null,"Service for Persons with Substance Abuse Problems"]
[]
[null,null,"3.  Select the services that will be provided with the ESG funds.  (Select all that apply)"]
[]
[null,null,false,"Street Outreach"]
[null,null,null,null,"Engagement",null,null,null,null,null,null,"Emergency mental health services"]
[null,null,null,null,"Case Management",null,null,null,null,null,null,"Transportation (includes public transportation)"]
[null,null,null,null,"Emergency health services"]
[]
[null,null,false,"Emergency Shelter"]
[null,null,null,null,"Shelter Operations/Maintenance Activities",null,null,null,null,null,null,"Essential Services"]
[null,null,null,null,null,"Food, furnishings and supplies",null,null,null,null,null,null,"Case Management*"]
[null,null,null,null,null,"Minor or routine repairs",null,null,null,null,null,null,"Transportation"]
[null,null,null,null,null,"Rent, security, fuel, utilities and equipment",null,null,null,null,null,null,"Outpatient health services"]
[null,null,null,null,null,"Ins and Professional Services (Accounting)",null,null,null,null,null,null,"Educational services- GED"]
[null,null,null,null,null,"Life skills training",null,null,null,null,null,null,"Employment assistance and job training"]
[]
[null,null,false,"Homeless Prevention Component (At Risk of Honmelessness Individuals and/or Households)"]
[null,null,null,null,"Housing Relocation and Stabilization Services",null,null,null,null,null,"Short/Medium-Term Rental Assistance"]
[null,null,null,null,null,"Financial Assistance Cost",null,null,null,null,null,"Services Cost"]
[null,null,null,null,null,null,"Rental Application Fees",null,null,null,null,null,"Housing search and placement"]
[null,null,null,null,null,null,"Security Deposits",null,null,null,null,null,"Housing stability case management*"]
[null,null,null,null,null,null,"Last Month's Rent",null,null,null,null,"Max amounts and periods of assistance"]
[null,null,null,null,null,null,"Utility Deposits",null,null,null,null,"Use with other subsidies"]
[null,null,null,null,null,null,"Utility Payments",null,null,null,null,"Mediation "]
[null,null,null,null,null,null,"Moving Costs",null,null,null,null,"Legal Services"]
[null,null,null,null,null,null,null,null,null,null,null,"Credit Repair"]
[]
[null,null,false,"Rapid Re-Housing Component (Homeless Individuals and/or Households)",null,null,null,null,null,null,null,null,null,"HUD PRIORITY"]
[null,null,null,null,"Housing Relocation and Stabilization Services",null,null,null,null,null,"Short/Medium-Term Rental Assistance"]
[null,null,null,null,null,"Financial Assistance Costs",null,null,null,null,null,"Services Cost"]
[null,null,null,null,null,null,"Rental Application Fees",null,null,null,null,null,"Housing search and placement"]
[null,null,null,null,null,null,"Security Deposits",null,null,null,null,null,"Housing stability case management*"]
[null,null,null,null,null,null,"Last Month's Rent",null,null,null,null,"Maximum amounts and periods of assistance"]
[null,null,null,null,null,null,"Utility Deposits",null,null,null,null,"Use with other subsidies"]
[null,null,null,null,null,null,"Utility Payments",null,null,null,null,"Mediation "]
[null,null,null,null,null,null,"Moving Costs",null,null,null,null,"Legal Services"]
[null,null,null,null,null,null,null,null,null,null,null,"Credit Repair"]
[]
[null,null,false,"HMIS (Homeless Management Information System"]
[null,null,null,null,"Eligible Costs (ESG funds may be used to pay the costs of contributing data to the HMIS designated by the CoC"]
[null,null,null,null,null,"Purchasing/leasing computer hardware",null,null,null,null,"General Restrictions"]
[null,null,null,null,null,"Purchasing software or software licenses",null,null,null,null,null,"Charges for utilities to operate or contribute data to the HMIS"]
[null,null,null,null,null,"Purchasing or leasing equipment",null,null,null,null,null,"Salaries for operating HMIS"]
[null,null,null,null,null,"Obtaining technical support",null,null,null,null,null,"Staff travel/attend HUD-sponsored/approved HMIS training"]
[null,null,null,null,null,"Leasing office space",null,null,null,null,null,"Staff travel cost to conduct intake"]
[null,null,null,null,null,null,null,null,null,null,null,"Participation fees charged by the HMIS Lead"]
[]
[]
[]
[null,"PROGRAM COMPONENTS AND ELIGIBLE ACTIVITIES"]
[]
[null,null,"STREET OUTREACH ACTIVITIES",null,null,null,null,"<Go back>"]
[null,null,"Essential Services related to reaching out to unsheltered homeless individuals and families, connecting them with emergency shelter, housing, or critical services, and providing them with urgent, non-facility-based care."]
[]
[null,null,"Eligible Costs are:"]
[null,null,"A.","Engagement:  The cost of activities to locate, identify, and build relationships with unsheltered homeless people and engage them for the purpose of providing immediate support, intervention, and connections with homeless assistance programs and/or mainstream social services and housing programs."]
[null,null,"B.","Case Management:  The cost of assessing housing and service needs, arranging, coordinating, and monitoring the delivery of individualized services to meet the needs of the program participant."]
[null,null,"C.","Emergency Health Services:  Cost are for direct outpatient treatment of medical conditions provided by licensed medical professionals, ONLY to be used if other appropriate health services are unavailable within the area."]
[null,null,"D.","Emergency Mental Health Services:  Cost are for direct outpatient treatment of medical conditions provided by licensed medical professionals, ONLY to be used if other appropriate health services are unavailable within the area."]
[null,null,"E.","Transportation:  The transportation costs of travel by outreach workers, social workers, medical professionals, or other service providers are eligible, provided that this travel takes place during the provision of services eligible under this section.  The costs of transporting unsheltered people to emergency shelters or other service facilities are also eligible."]
[null,null,"F.","Services for Special Populations:  Funds may be used to provide services for homeless youth, victim services, and services for people living with HIV/AIDS."]
[]
[]
[null,null,"EMERGENCY SHELTER",null,null,null,null,"<Go back>"]
[null,null,"Renovation, including major rehabilitation or conversion, of a building to serve as an emergency shelter.  The emergency shelter must be owned by a government entity or private nonprofit organization.  The shelter must serve homeless persons for at least 3 or 10 years, depending on the type of renovation and the value of the building.  Note:  Property acquisition and new construction are ineligible ESG activities."]
[]
[null,null,"Eligible Activities are:"]
[null,null,"A.","Shelter Operations"]
[null,null,null,"Eligible Expenses include cost of maintenance, rent, security, fuel, equipment, insurance, utilities, food furnishing and supplies necessary for the operation of the emergency shelter.  Where no appropriate emergency shelter is available for a homeless family or individual, eligible costs may also include a hotel or motel voucher (7 days without approval) for the family or individual.  Reimbursement from ESG funding for staff costs/case management is allowed for up to 50% of the total ESG grant received."]
[]
[null,null,"B.","Essential Services"]
[null,null,null,"     Eligible Program Participants:  Individuals and families who are homeless."]
[null,null,null,"     Eligible Expenses:  Case management and transportation."]
[]
[null,null,"C","Outpatient Health Services\nMay be provided through ESG only to the extent that other appropriate health services are unavailable within the community.  \n"]
[null,null,"D","Education\nEducational services is an eligible cost when necessary for the program participant to obtain and maintain housing. Educational services includes General Educational Development (GED) programs, and English as a Second Language programs.  \n"]
[null,null,"E","Employment \nEmployment Assistance and Job Training programs are eligible including services that assist individuals in securing employment, acquiring learning skills, and/or increasing earning potential. Learning skills include those skills that can be used to secure and retain a job, including the acquisition of vocational licenses and/or certification."]
[null,null,"HOMELESS PREVENTION ACTIVITIES (HP)",null,null,null,null,"<Go back>"]
[null,null,"Housing relocation and stabilization services and short-and/or medium-term rental assistance as necessary to prevent the individual or family from moving to an emergency shelter, a place not meant for human habitation, or another place described in HUD's regulations. Eligible persons must meet the \"At Risk of Homelessness\" definition. "]
[null,null,"RAPID RE-HOUSING ACTIVITIES (RRH)   HUD PRIORITY",null,null,null,null,null,"<Go back>"]
[null,null,"Housing relocation and stabilization services and/or short-and/or medium-term rental assistance as necessary to help individuals or families living in shelters or in places not meant for human habitation move as quickly as possible into permanent housing and achieve stability in that housing."]
[null,null,"Eligible Participants:  Literally homeless individuals and households is currently living in an emergency shelter or a place not meant for human habitation and who are extremely low income."]
[null,null,"Housing Relocation and Stabilization Services (RRH) (HP):  includes moving costs, rental application fees, security deposit, last month's rent if necessary to obtain housing, utility deposits only, utility arrearage, housing search and placement and housing stability case management (ESG reimbursement cannot exceed 50% of ESG funding to include staff costs and other case management)."]
[null,null,"A","Rental Assistance:  Applicants identify permanent housing uits that meet ESG requirements and enter into a rental assistance agreement with the owner to reserve the unit and subsidize its rent so that eligible program participants have access to the units."]
[null,null,"B.","Short-Term Rental Assistance:  up to 3 months"]
[null,null,null,"Medium-Term Rental Assistance:  > 3 months but not more than 24 months"]
[null,null,"C.","Mediation (RRH & HP):\nESG funds may pay for mediation between the program participant and the owner or\nperson(s) with whom the program participant is living, provided that the mediation is necessary to prevent\nthe program participant from losing permanent housing in which the program participant currently resides."]
[null,null,"D.","Legal services (RRH & HP).:\nESG funds may pay for legal services, as set forth in § 576.102(a)(1)(vi), except that the\neligible subject matters also include landlord/tenant matters, and the services must be necessary to resolve\na legal problem that prohibits the program participant from obtaining permanent housing or will likely result in\nthe program participant is losing the permanent housing in which the program participant currently resides."]
[null,null,"E.","Credit repair (RRH & HP):\n ESG funds may pay for credit counseling and other services necessary to assist program\nparticipants with critical skills related to household budgeting, managing money, accessing a free personal\ncredit report, and resolving personal credit problems. This assistance does not include the payment or\nmodification of a debt."]
[]
[null,null,"HOMELESS MANAGEMENT INFORMATION SYSTEM",null,null,null,null,null,null,null,"<Go back>"]
[null,null,"ESG funds may be used to pay for the costs of participating in and contributing to the HMIS designated by the Continuum of Care for the area."]
[null,null,"Eligible Costs are:"]
[null,null,"A.","Cost of contributing data to the HMIS designated by the CoC:"]
[null,null,null,1,"Purchasing or leasing computer hardware."]
[null,null,null,2,"Purchasing software or software licenses."]
[null,null,null,3,"Purchasing or leasing equipment, including telephones, fax machines, and furniture."]
[null,null,null,4,"Obtaining technical support pertaining to ESG."]
[null,null,null,5,"Leasing office space."]
[null,null,null,6,"Paying charges for electricity, gas, water, phone service, and high-speed data transmission necessary to operate or contribute data to the HMIS."]
[null,null,null,7,"Paying salaries for operating HMIS:"]
[null,null,null,null,"a)","Completing data entry"]
[null,null,null,null,"b)","Monitoring and reviewing data quality"]
[null,null,null,null,"c)","Completing data analysis"]
[null,null,null,null,"d)","Reporting to the HMIS Lead"]
[null,null,null,null,"e)","Training staff on using the HMIS or comparable database"]
[null,null,null,null,"f)","Implementing and complying with HMIS requirements"]
[null,null,null,8,"Paying costs of staff to travel to attend HUD-sponsored and HUD-approved training on HMIS and programs authorized by Title IV of the McKinney-Vento Homeless Assistance Act."]
[null,null,null,9,"Paying staff travel costs to conduct intake."]
[null,null,null,10,"Paying participation fees charged by the HMIS Lead."]
[null,null,"B.","HMIS Lead Agency:  If the recipient is the HMIS lead agency, as designated by the Continuum of Care in the most recent fiscal year CoC Homeless Assistance Grants Competition, it may use ESG funds to pay the cost of items listed in 24 CFR 576.107 (2) (i) - (vii)."]
[]
[null,null,"C.","Victim Services Provider/Legal Services Provider:  If the subrecipient is a victim services provider or a legal services provider, it may use ESG funds to establish and operate a comparable database that collects client-level data over time and generate unduplicated aggregate reports based on the data.  Information entered into a comparable database must not be entered directly into or provided to an HMIS."]

{"sheet":"Match Funds","index":16,"n_rows":76,"n_cols":13,"rows_kept":76,"cut":false,"hidden":false,"merged":[[32,2,32,8],[33,2,33,8],[33,10,33,12],[29,2,29,8],[29,10,29,12],[30,2,30,8],[30,10,30,12],[31,2,31,8],[31,10,31,12],[32,10,32,12],[28,10,28,12],[24,2,24,8],[25,2,25,8],[25,10,25,12],[26,2,26,8],[26,10,26,12],[27,2,27,8],[28,2,28,8],[20,2,20,4],[21,2,21,12],[23,10,23,12],[24,10,24,12],[27,10,27,12],[1,1,1,13],[2,1,2,13],[6,2,6,12],[8,2,8,12],[19,2,19,12],[7,2,7,12],[11,3,11,4],[12,3,12,4],[13,3,13,4],[14,3,14,4],[15,3,15,4]]}
[]
[null,"XII. A.  MATCH FUNDS"]
[null,"ESG funds require a 100% dollar for dollar match. Matching funds must equal or exceed the total ESG funding request.  In addition, at least 25% of the Total Funds Request must be matched with liquid assets."]
[null,{"$f":"IF('Applicant Info'!E19=\"\",\"\",'Applicant Info'!E19)","v":""},null,null,null,null,null,null,null,null,null,null,{"$f":"'Threshold Requirements'!J4","v":"ESG PY 2026"}]
[]
[null,null,"Funding Request"]
[null,null,"Below is the list of ESG Components.  Enter the amount of funds being requested for each ESG Component and the percentage of staff cost.  Request only those funds expected to be expended over the twelve (12) month contract period.  Round to the nearest dollar ($1.00)."]
[]
[null,null,"Applications will be accepted from agencies that have the capacity to provide ESG services in their community but are unable to meet the match requirements. Up to $100,000 of a State’s fiscal year grant is not required to be matched; therefore, MHC is passing this benefit to subrecipients that are least capable of providing the match contributions and to encourage new applications.\n\nRequirements for match exceptions: \nMust be a new ESG applicant or an agency who has not received ESG funding in two or more years.  \nThe agency does not have the required contributions to meet ESG match requirements listed above.   "]
[]
[null,null,null,null,null,null,null,null,null,"Amount Requested","Total staff cost per activity","Percentage of grant for staff cost"]
[null,null,null,{"$f":"IF(Activities!C20=TRUE,\"X\",\"\")","v":""},null,"  Street Outreach",null,null,null,0,0,{"$f":"(K12/J12)","v":{"$error":"#DIV/0!"}}]
[null,null,null,{"$f":"IF(Activities!C25=TRUE,\"X\",\"\")","v":""},null,"  Emergency Shelter",null,null,null,0,0,{"$f":"(K13/J13)","v":{"$error":"#DIV/0!"}}]
[null,null,null,{"$f":"IF(Activities!C44=TRUE,\"X\",\"\")","v":""},null,"  Rapid Re-housing",null,null,null,0,0,{"$error":"#DIV/0!"}]
[null,null,null,{"$f":"IF(Activities!C33=TRUE,\"X\",\"\")","v":""},null,"  Homelessness Prevention",null,null,null,0,0,{"$error":"#DIV/0!"}]
[null,null,null,{"$f":"IF(Activities!C55=TRUE,\"X\",\"\")","v":""},null,"  HMIS",null,null,null,0,0,{"$f":"(K16/J16)","v":{"$error":"#DIV/0!"}}]
[null,null,null,"TOTAL ESG FUNDS REQUEST:",null,null,null,null,null,0]
[]
[null,null,"Requirements for match exceptions: "]
[null,null,"1. Must be a new ESG applicant or an agency who has not received ESG funding in two or more years.  \n2. The agency does not have the required contributions to meet ESG match requirements listed above.   "]
[null,null,"Matching Funds"]
[null,null,"Matching contributions may be obtained from any source, including any Federal source other than the ESG program, as well as state, local, and private sources.  Matching funds/services must be spent on /used for ESG-eligible activities and must benefit the ESG program participants. Points will be given based on the clarity of proposed match.  Match (in-kind or cash) must be explained as to how its use relates to the activities allowed under the McKinney Homeless Assistance Act, as amended.  Match must be verified to include resolutions and letters detailing sources of funds.  If match comes from the city or the county, then the source of funds (general fund) must be identified.  Letters from banks, organizations, or donors specifying donated items will be needed.  Volunteer hours and fundraising efforts will need to be discussed in enough detail for each volunteer to establish validity.  The service area or activities for which volunteer hours are used must be clearly indicated. "]
[]
[null,null,"List all funding sources committed to the proposed project.",null,null,null,null,null,null,"Amount","Supporting Documentation"]
[null,null,null,null,null,null,null,null,null,0]
[null,null,null,null,null,null,null,null,null,0]
[null,null,null,null,null,null,null,null,null,0]
[null,null,null,null,null,null,null,null,null,0]
[null,null,null,null,null,null,null,null,null,0]
[null,null,null,null,null,null,null,null,null,0]
[null,null,null,null,null,null,null,null,null,0]
[null,null,null,null,null,null,null,null,null,0]
[null,null,null,null,null,null,null,null,null,0]
[null,null,null,null,null,null,null,null,null,0]
[null,null,"Total Match:",null,null,null,null,null,null,{"$f":"SUM(J25:J34)","v":0}]
[null,null,"Gap:",null,null,null,null,null,null,{"$f":"(J35-J17)","v":0}]
[null,null,"Does Applicant meet the 100% dollar for dollar match requirement?",null,null,null,null,null,null,{"$f":"IF(J35>=J17,\"True\")","v":"True"}]
[]
[]
[]
[]
[]
[]
[]
[]
[]
[]
[]
[]
[]
[]
[]
[]
[]
[]
[]
[]
[]
[]
[]
[]
[]
[]
[]
[]
[]
[]
[]
[]
[]
[]
[]
[]
[null,null,"In order to meet the matching requirement, the matching contributions must:"]
[]
[null,null,null,"be provided after the date that HUD signs"]

{"sheet":"Match Budget","index":17,"n_rows":33,"n_cols":17,"rows_kept":33,"cut":false,"hidden":false,"merged":[[2,1,2,11],[4,2,4,4],[4,8,4,11]]}
[]
[null,"XII.B.  MATCH BUDGET"]
[null,"Applicants must provide “dollar for dollar” matching funds. Pursuant to 24 CFR Part 576.201and 42 U.S.C. 11375, the ESG program requires that ESG funds provided by HUD be matched (cash and in-kind) with an equal amount of funds from other sources. In addition, at least 25% of the subrecipient's required match must be matched with liquid assets. The match in its entirety must equal the grant request amount.  \t \n\n*The cost or service used for match must be an eligible expense under ESG if ESG funds were used to pay for it.\n\t\n"]
[null,{"$f":"IF('Applicant Info'!E19=\"\",\"\",'Applicant Info'!E19)","v":""},null,null,null,null,null,null,null,null,{"$f":"'Threshold Requirements'!J4","v":"ESG PY 2026"}]
[null,null,"Match Discription  \t ",null,null,null,null,null,"Match Budget Per Quarter"]
[]
[null,null,"Match Sources",null,"Match Uses","Match Type","In-Kind (Yes/No)"]
[null,null,null,null,null,null,null,null,"First Quarter","Second Quarter","Third Quarter","Fourth Quarter"]
[null,null,null,null,null,null,null,null,0,0,0,0]
[null,null,null,null,null,null,null,null,0,0,0,0]
[null,null,null,null,null,null,null,null,{"$f":"SUM(I9:I10)","v":0},{"$f":"SUM(J9:J10)","v":0},{"$f":"SUM(K9:K10)","v":0},{"$f":"SUM(L9:L10)","v":0}]
[null,null,null,null,null,null,null,null,0,0,0,0]
[null,null,null,null,null,null,null,null,0,0,0,0]
[null,null,null,null,null,null,null,null,{"$f":"SUM(I12:I13)","v":0},{"$f":"SUM(J12:J13)","v":0},{"$f":"SUM(K12:K13)","v":0},{"$f":"SUM(L12:L13)","v":0}]
[null,null,null,null,null,null,null,null,0,0,0,0]
[null,null,null,null,null,null,null,null,0,0,0,0]
[null,null,null,null,null,null,null,null,{"$f":"SUM(I15:I16)","v":0},{"$f":"SUM(J15:J16)","v":0},0,{"$f":"SUM(L15:L16)","v":0}]
[null,null,null,null,null,null,null,null,{"$f":"SUM(I15:I17)","v":0},0,0,0]
[null,null,null,null,null,null,null,null,0,0,0,0]
[null,null,null,null,null,null,null,null,{"$f":"SUM(I18:I19)","v":0},{"$f":"SUM(J18:J19)","v":0},0,0]
[null,null,null,null,null,null,null,null,0,0,0,0]
[]
[null,null,"Total Match by Quarter:",null,null,null,null,null,{"$f":"SUM(I11+I14+I17+I20+I21)","v":0},{"$f":"SUM(J11+J14+J17+J20+J21)","v":0},0,0]
[]
[null,null,"TOTAL MATCH:",null,null,null,null,null,null,null,null,{"$f":"I23+J23+K23+L23","v":0}]
[null,null,"*The match listed on the \"Match Budget\" tab must correspond to the match on the \"Match Funds\" tab and must be equal to or greater than the total ESG requested amount."]
[null,null,null,null,null,null,null,null,null,null,null,null,null,null,null,"In-Kind","Match Type"]
[null,null,null,null,null,null,null,null,null,null,null,null,null,null,null,"Yes","Other Non-ESG HUD Funds"]
[null,null,null,null,null,null,null,null,null,null,null,null,null,null,null,"No","Other Federal Funds"]
[null,null,null,null,null,null,null,null,null,null,null,null,null,null,null,null,"State Government"]
[null,null,null,null,null,null,null,null,null,null,null,null,null,null,null,null,"Local Government"]
[null,null,null,null,null,null,null,null,null,null,null,null,null,null,null,null,"Private Funds"]
[null,null,null,null,null,null,null,null,null,null,null,null,null,null,null,null,"Other"]

{"sheet":"Budget and Financial Controls ","index":18,"n_rows":55,"n_cols":19,"rows_kept":55,"cut":false,"hidden":false,"merged":[[40,25,91,177],[53,3,53,4],[43,1,43,19],[44,2,44,19],[46,2,46,19],[47,13,55,19],[45,13,45,19],[45,2,45,12],[49,3,49,4],[50,3,50,4],[51,3,51,4],[52,3,52,4],[11,2,40,18],[1,1,1,19],[2,1,2,19],[5,2,5,18],[6,2,7,18],[9,2,9,19]]}
[]
[null,"XIII.  Financial Controls and Program Budget "]
[null,"Proposed Performance Outcome Measurement should reflect the needs and goals expected to be met during the activity period.  (Enter \"N/A\" for indicators that do not apply to your project)."]
[null,{"$f":"IF('Applicant Info'!E19=\"\",\"\",'Applicant Info'!E19)","v":""},"Financial Controls and Program Budget  Up to 15 points",null,null,null,null,null,null,null,null,null,null,null,null,null,null,null,{"$f":"'Threshold Requirements'!J4","v":"ESG PY 2026"}]
[null,null,"Budget Policy "]
[null,null,"Describe your agency’s fiscal policies, financial management systems, and internal controls used to ensure compliance with federal and state requirements for the management, expenditure, documentation, and tracking of federal funds. Include procedures for preventing and identifying waste, misuse, abuse, and fraud, as well as protocols for identifying, disclosing, and managing conflicts of interest. (Limited to 3,500 characters.)"]
[]
[]
[null,null,"Sound Budget "]
[null,null,"Describe how the proposed budget is reasonable, necessary, and allowable, and demonstrate the agency’s financial capacity to operate the ESG grant on a reimbursement basis. (Limited to 3,500 characters.)"]
[]
[]
[]
[]
[]
[]
[]
[]
[]
[]
[]
[]
[]
[]
[]
[]
[]
[]
[]
[]
[]
[]
[]
[]
[]
[]
[]
[]
[]
[]
[]
[]
[]
[null,"      Funding Request"]
[null,null,"Below is the list of ESG Components.  Enter the amount of funds being requested for each ESG Component and the percentage of staff cost.  Request only those funds expected to be expended over the twelve (12) month contract period.  Round to the nearest dollar ($1.00)."]
[]
[null,null,"Applications will be accepted from agencies that have the capacity to provide ESG services in their community but are unable to meet the match requirements. Up to $100,000 of a State’s fiscal year grant is not required to be matched; therefore, MHC is passing this benefit to subrecipients that are least capable of providing the match contributions and to encourage new applications.\n\nRequirements for match exceptions: \nMust be a new ESG applicant or an agency who has not received ESG funding in two or more years.  \nThe agency does not have the required contributions to meet ESG match requirements listed above.   "]
[]
[null,null,null,null,null,null,null,null,null,"Amount Requested","Total staff cost per activity","Percentage of grant for staff cost"]
[null,null,null,{"$f":"IF(Activities!C58=TRUE,\"X\",\"\")","v":""},null,"  Street Outreach",null,null,null,0,0,{"$f":"(K50/J50)","v":{"$error":"#DIV/0!"}}]
[null,null,null,{"$f":"IF(Activities!C63=TRUE,\"X\",\"\")","v":""},null,"  Emergency Shelter",null,null,null,0,0,{"$f":"(K51/J51)","v":{"$error":"#DIV/0!"}}]
[null,null,null,{"$f":"IF(Activities!C82=TRUE,\"X\",\"\")","v":""},null,"  Rapid Re-housing",null,null,null,0,0,{"$error":"#DIV/0!"}]
[null,null,null,{"$f":"IF(Activities!C71=TRUE,\"X\",\"\")","v":""},null,"  Homelessness Prevention",null,null,null,0,0,{"$error":"#DIV/0!"}]
[null,null,null,{"$f":"IF(Activities!C93=TRUE,\"X\",\"\")","v":""},null,"  HMIS",null,null,null,0,0,{"$f":"(K54/J54)","v":{"$error":"#DIV/0!"}}]
[null,null,null,"TOTAL ESG FUNDS REQUEST:",null,null,null,null,null,{"$f":"SUM(J50:J54)","v":0},{"$f":"SUM(K50:K54)","v":0},{"$f":"(K55/J55)","v":{"$error":"#DIV/0!"}}]

{"sheet":"Project Budget","index":19,"n_rows":75,"n_cols":19,"rows_kept":75,"cut":false,"hidden":false,"merged":[[50,2,50,5],[51,2,51,5],[52,2,52,5],[46,3,46,6],[48,2,48,5],[49,2,49,5],[23,2,23,6],[24,2,24,6],[25,2,25,6],[29,2,30,6],[43,8,43,11],[32,2,32,6],[33,2,33,6],[34,2,34,6],[35,2,35,6],[36,2,36,6],[37,2,37,6],[38,2,38,6],[39,2,39,6],[40,2,40,6],[41,2,41,6],[43,2,43,6],[74,4,74,8],[74,10,74,12],[3,1,3,12],[6,1,6,11],[7,2,7,6],[7,8,7,11],[15,2,15,6],[12,2,12,6],[31,2,31,6],[16,2,16,6],[17,2,17,6],[18,2,18,6],[19,2,19,6],[20,2,20,6],[21,2,21,6],[22,2,22,6],[60,1,60,12],[61,2,64,12],[70,2,70,4],[68,2,69,10],[66,2,67,10]]}
[]
[]
[null,"XIII.  PROJECT BUDGET "]
[null,"The Emergency Solutions Grant funding must be used in coordination with other funding sources and programs to ensure a continuum of services.  The Proposed Budget must provide information on the organization's activities, resources, and expenditures projected for PY 26.  Complete as accurately and completely as possible.  Failure to do so may result in a reduction or denial of funding.\n\n *Agencies may not receive the complete amount of requested funding, including indirect costs."]
[null,{"$f":"IF('Applicant Info'!E19=\"\",\"\",'Applicant Info'!E19)","v":""},"Financial Controls & Budget Up to 15 points",null,null,null,null,null,null,null,null,{"$f":"'Threshold Requirements'!J4","v":"ESG PY 2026"}]
[]
[]
[null,null,"Anticipated Resources",null,null,null,null,null,"Amount Projected"]
[null,null,null,null,null,null,null,null,"First Quarter","Second Quarter","Third Quarter","Fourth Quarter"]
[null,null,"2026 Emergency Solutions Grant (ESG) Request:",null,null,null,null,null,0,0,0,0]
[]
[]
[null,null,"Project Non-Matching Funds:"]
[]
[null,null,"List the funding source for all non-matching funds.",null,null,null,null,null,"First Quarter","Second Quarter","Third Quarter","Fourth Quarter"]
[null,null,null,null,null,null,null,null,0,0,0,0]
[null,null,null,null,null,null,null,null,0,0,0,0]
[null,null,null,null,null,null,null,null,0,0,0,0]
[null,null,null,null,null,null,null,null,0,0,0,0]
[null,null,null,null,null,null,null,null,0,0,0,0]
[null,null,null,null,null,null,null,null,0,0,0,0]
[null,null,null,null,null,null,null,null,0,0,0,0]
[null,null,null,null,null,null,null,null,0,0,0,0]
[null,null,null,null,null,null,null,null,0,0,0,0]
[null,null,null,null,null,null,null,null,0,0,0,0]
[null,null,"TOTAL PROJECT NON-MATCHING FUNDS",null,null,null,null,null,{"$f":"SUM(I16:I25)","v":0},{"$f":"SUM(J16:J25)","v":0},0,0]
[]
[]
[null,null,"Other Sources of Funds (non-ESG Project)"]
[null,null,"List the funding source for all other sources not related to the ESG Project."]
[null,null,null,null,null,null,null,null,"First Quarter","Second Quarter","Third Quarter","Fourth Quarter"]
[null,null,null,null,null,null,null,null,0,0,0,0]
[null,null,null,null,null,null,null,null,0,0,0,0]
[null,null,null,null,null,null,null,null,0,0,0,0]
[null,null,null,null,null,null,null,null,0,0,0,0]
[null,null,null,null,null,null,null,null,0,0,0,0]
[null,null,null,null,null,null,null,null,0,0,0,0]
[null,null,null,null,null,null,null,null,0,0,0,0]
[null,null,null,null,null,null,null,null,0,0,0,0]
[null,null,null,null,null,null,null,null,0,0,0,0]
[null,null,null,null,null,null,null,null,0,0,0,0]
[null,null,"TOTAL OTHER SOURCES OF FUNDS",null,null,null,null,null,{"$f":"SUM(I32:I41)","v":0},{"$f":"SUM(J32:J41)","v":0},0,0]
[]
[null,null,"Anticipated Expenses",null,null,null,null,null,"Amount Projected Per Quarter"]
[]
[null,null,"Projected Project Expenses"]
[null,null,null,"Click on the program activity to access the appropriate expenditure sheet."]
[null,null,null,null,null,null,null,null,"First Quarter","Second Quarter","Third Quarter","Fourth Quarter"]
[null,null,"Total Shelter",null,null,null,null,null,{"$f":"'Project Budget Shelter'!F46","v":0},{"$f":"'Project Budget Shelter'!G46","v":0},{"$f":"'Project Budget Shelter'!H46","v":0},{"$f":"'Project Budget Shelter'!I46","v":0}]
[null,null,"Total Street Outreach",null,null,null,null,null,{"$f":"'Project Budget Street Outreach'!E14","v":0},{"$f":"'Project Budget Street Outreach'!F14","v":0},{"$f":"'Project Budget Street Outreach'!G14","v":0},{"$f":"'Project Budget Street Outreach'!H14","v":0}]
[null,null,"Homelessness Prevention (HP) Activities",null,null,null,null,null,{"$f":"'Project Budget HP'!F30","v":0},{"$f":"'Project Budget HP'!G30","v":0},{"$f":"'Project Budget HP'!H30","v":0},{"$f":"'Project Budget HP'!I30","v":0}]
[null,null,"Rapid Re-Housing (RRH) Activities",null,null,null,null,null,{"$f":"'Project Budget RRH'!E27","v":0},{"$f":"'Project Budget RRH'!F27","v":0},{"$f":"'Project Budget RRH'!G27","v":0},{"$f":"'Project Budget RRH'!H27","v":0}]
[null,null,"HMIS",null,null,null,null,null,{"$f":"'Project Budget HMIS'!E17","v":0},{"$f":"'Project Budget HMIS'!F17","v":0},{"$f":"'Project Budget HMIS'!G17","v":0},{"$f":"'Project Budget HMIS'!H17","v":0}]
[]
[null,null,"Total Expenses by Quarter:",null,null,null,null,null,{"$f":"SUM(I49:I54)","v":0},{"$f":"SUM(J49:J54)","v":0},{"$f":"SUM(K49:K53)","v":0},{"$f":"SUM(L49:L53)","v":0}]
[]
[null,null,"TOTAL EXPENSES:",null,null,{"$f":"I55+J55+K55+L55","v":0}]
[]
[]
[]
[null,"BUDGET ASSURANCE AND FINANCIAL CAPACITY CERTIFICATION"]
[null,null,"The applicant certifies that it has sufficient cash on hand, an available line of credit, or other unrestricted financial resources to cover projected monthly ESG expenses based on the proposed budget while awaiting reimbursement. The applicant understands that ESG operates on a reimbursement basis and that sufficient financial capacity must be maintained throughout the grant period. Supporting documentation verifying available financial resources must be provided with the agency’s financial information 24 CFR § 576.203(c), 24 CFR § 576.203(b)."]
[]
[]
[]
[]
[null,null,"The applicant currently has available cash-on-hand, lines of credit, and unrestricted funds that will be used for the ESG grant.",null,null,null,null,null,null,null,null,"Total Available"]
[null,null,null,null,null,null,null,null,null,null,null,0,null,null,null,null,null,null,"YES"]
[null,null,"I certify that the agency has sufficient financial resources to operate the ESG grant on a reimbursement basis",null,null,null,null,null,null,null,null,null,null,null,null,null,null,null,"NO"]
[]
[]
[]
[null,null,"Executive Director Name:"]
[]
[null,null,"Signature:",null,null,null,null,null,null,"Date:"]

{"sheet":"..","index":20,"n_rows":80,"n_cols":12,"rows_kept":80,"cut":false,"hidden":true,"merged":[[64,2,64,7],[66,2,66,6],[40,2,40,6],[44,2,45,6],[53,2,53,6],[58,2,58,6],[58,8,58,11],[46,2,46,6],[47,2,47,6],[48,2,48,6],[49,2,49,6],[50,2,50,6],[51,2,51,6],[52,2,52,6],[54,2,54,6],[55,2,55,6],[56,2,56,6],[35,2,35,6],[36,2,36,6],[37,2,37,6],[38,2,38,6],[39,2,39,6],[30,2,30,6],[31,2,31,6],[32,2,32,6],[33,2,33,6],[34,2,34,6],[21,2,21,6],[22,2,22,6],[23,2,23,6],[24,2,24,6],[27,2,27,6],[69,2,69,6],[72,5,72,6],[73,5,73,6],[74,5,74,6],[3,1,3,12],[7,2,7,6],[7,8,7,11],[11,2,11,6],[14,2,14,6],[15,2,15,6],[16,2,16,6],[6,1,6,11],[17,2,17,6],[18,2,18,6],[19,2,19,6],[20,2,20,6]]}
[]
[]
[null,"VII.  PROJECT BUDGET "]
[null,"The Emergency Solutions Grant funding must be used in coordination with other funding sources and programs to ensure continuum of services.  The Proposed Budget must provide information on the organization's activities, resources, and expenditures projected for 2021-2022.  Complete as accurately and completely as possible.  Failure to do so may result in a reduction or denial of funding."]
[null,{"$f":"IF('Applicant Info'!E19=\"\",\"\",'Applicant Info'!E19)","v":""},null,null,null,null,null,null,null,null,null,{"$f":"#REF!","v":{"$error":"#REF!"}}]
[]
[null,"*If your agency is applying for a two-year ESG grant cycle, only provide the budget for the current (FY 2021 -2022) ESG grant year. "]
[null,null,"Anticipated Resources",null,null,null,null,null,"Amount Projected"]
[null,null,null,null,null,null,null,null,"First Quarter","Second Quarter","Third Quarter","Fourth Quarter"]
[null,null,"2021 Emergency Solutions Grant (ESG) Request:",null,null,null,null,null,0,0,0,0]
[]
[null,null,"ESG Matching Funds:"]
[]
[null,null,"List the funding source for all ESG matching funds.",null,null,null,null,null,"First Quarter","Second Quarter","Third Quarter","Fourth Quarter"]
[null,null,null,null,null,null,null,null,0,0,0,0]
[null,null,null,null,null,null,null,null,0,0,0,0]
[null,null,null,null,null,null,null,null,0,0,0,0]
[null,null,null,null,null,null,null,null,0,0,0,0]
[null,null,null,null,null,null,null,null,0,0,0,0]
[null,null,null,null,null,null,null,null,0,0,0,0]
[null,null,null,null,null,null,null,null,0,0,0,0]
[null,null,null,null,null,null,null,null,0,0,0,0]
[null,null,null,null,null,null,null,null,0,0,0,0]
[null,null,null,null,null,null,null,null,0,0,0,0]
[null,null,"TOTAL ESG MATCHING FUNDS:",null,null,null,null,null,{"$f":"SUM(I10:I24)","v":0},0,0,0]
[]
[]
[null,null,"Project Non-Matching Funds:"]
[]
[null,null,"List the funding source for all non-matching funds.",null,null,null,null,null,"First Quarter","Second Quarter","Third Quarter","Fourth Quarter"]
[null,null,null,null,null,null,null,null,0,0,0,0]
[null,null,null,null,null,null,null,null,0,0,0,0]
[null,null,null,null,null,null,null,null,0,0,0,0]
[null,null,null,null,null,null,null,null,0,0,0,0]
[null,null,null,null,null,null,null,null,0,0,0,0]
[null,null,null,null,null,null,null,null,0,0,0,0]
[null,null,null,null,null,null,null,null,0,0,0,0]
[null,null,null,null,null,null,null,null,0,0,0,0]
[null,null,null,null,null,null,null,null,0,0,0,0]
[null,null,null,null,null,null,null,null,0,0,0,0]
[null,null,"TOTAL PROJECT NON-MATCHING FUNDS",null,null,null,null,null,{"$f":"SUM(I31:I40)","v":0},0,0,0]
[]
[]
[null,null,"Other Sources of Funds (non-ESG Project)"]
[null,null,"List the funding source for all other sources not related to the ESG Project."]
[null,null,null,null,null,null,null,null,"First Quarter","Second Quarter","Third Quarter","Fourth Quarter"]
[null,null,null,null,null,null,null,null,0,0,0,0]
[null,null,null,null,null,null,null,null,0,0,0,0]
[null,null,null,null,null,null,null,null,0,0,0,0]
[null,null,null,null,null,null,null,null,0,0,0,0]
[null,null,null,null,null,null,null,null,0,0,0,0]
[null,null,null,null,null,null,null,null,0,0,0,0]
[null,null,null,null,null,null,null,null,0,0,0,0]
[null,null,null,null,null,null,null,null,0,0,0,0]
[null,null,null,null,null,null,null,null,0,0,0,0]
[null,null,null,null,null,null,null,null,0,0,0,0]
[null,null,"TOTAL OTHER SOURCES OF FUNDS",null,null,null,null,null,{"$f":"SUM(I47:I56)","v":0},0,0,0]
[]
[null,null,"Anticipated Expenses",null,null,null,null,null,"Amount Projected Per Quarter"]
[]
[null,null,"Projected Project Expenses"]
[null,null,null,null,null,null,null,null,"First Quarter","Second Quarter","Third Quarter","Fourth Quarter"]
[null,null,"Shelter Operations",null,null,null,null,null,0,0,0,0]
[null,null,"Shelter: Hotel/Motel ",null,null,null,null,null,0,0,0,0]
[null,null,"Shelter Support Services: Education, Employment & Job Training, Outpatient Health Services",null,null,null,null,null,0,0,0,0]
[null,null,"Street Outreach Activities",null,null,null,null,null,"$","$","$","$"]
[null,null,"Street Outreach Supportive Activities: Emergency Health and Menal Health services ",null,null,null,null,null,0,"$","$","$"]
[null,null,"Homelessness Prevention (HP) Activities",null,null,null,null,null,0,0,0,0]
[null,null,"Rapid Re-Housing (HP) Activities",null,null,null,null,null,0,0,0,0]
[null,null,"RRH/HP Housing Stabilization Supportive Activities: Mediation, Legal Services, Credit Repair",null,null,null,null,null,"$","$","$","$"]
[]
[null,null,"Staff Salaries",null,null,null,null,null,"$","$","$","$"]
[null,null,"Other (Specify:)",null,null,null,null,null,0,0,0,0]
[null,null,null,null,null,null,null,null,0,0,0,0]
[null,null,null,null,null,null,null,null,0,0,0,0]
[]
[]
[null,null,"Total Expenses by Quarter:",null,null,null,null,null,{"$f":"SUM(I63:I75)","v":0},{"$f":"SUM(J63:J75)","v":0},{"$f":"SUM(K63:K75)","v":0},{"$f":"SUM(L63:L75)","v":0}]
[]
[null,null,"TOTAL EXPENSES:",null,null,null,null,null,null,null,null,{"$f":"I78+J78+K78+L78","v":0}]

{"sheet":"Budget Summary","index":21,"n_rows":51,"n_cols":11,"rows_kept":51,"cut":false,"hidden":false,"merged":[[38,1,38,11],[39,2,42,10],[25,2,25,8],[2,1,2,11],[5,2,5,10],[6,2,6,8],[13,2,13,8],[16,2,16,9],[22,2,22,9]]}
[]
[null,"XIII.  BUDGET SUMMARY"]
[null,"The Emergency Solutions Grant funding must be used in coordination with other funding sources and programs to ensure continuum of services.  The Proposed Budget must provide information on the organization's activities, resources, and expenditures projected for ESG 2026.  Complete as accurately and completely as possible.  Failure to do so may result in a reduction or denial of funding.\n\n *Agencies may not receive the complete amount of requested funding, including indirect costs."]
[null,{"$f":"IF('Applicant Info'!E19=\"\",\"\",'Applicant Info'!E19)","v":""},"Financial Controls & Budget Up to 15 points",null,null,null,null,null,null,null,{"$f":"'Threshold Requirements'!J4","v":"ESG PY 2026"}]
[]
[]
[null,null,"Anticipated Resources",null,null,null,null,null,null,null,"Amount Projected"]
[]
[null,null,"2026 Emergency Solutions Grant (ESG) Request",null,null,null,null,null,null,null,{"$f":"'Project Budget'!F57","v":0}]
[]
[null,null,"Cash on Hand - Project Budget Deficit",null,null,null,null,null,null,null,0]
[]
[null,null,"Total Matching Funds",null,null,null,null,null,null,null,{"$f":"'Match Funds'!J35","v":0}]
[]
[null,null,"Total Non-Matching Funds",null,null,null,null,null,null,null,0]
[]
[null,null,"TOTAL PROJECT RESOURCES:",null,null,null,null,null,null,null,{"$f":"SUM(K9+K11+K13)","v":0}]
[]
[null,null,"Total Other Sources of Funds (Non-ESG Project)",null,null,null,null,null,null,null,{"$f":"'Project Budget'!I42+'Project Budget'!J42+'Project Budget'!K42+'Project Budget'!L42","v":0}]
[]
[null,null,"Cash on Hand - Non-Project Deficit",null,null,null,null,null,null,null,0]
[]
[null,null,"TOTAL RESOURCES:",null,null,null,null,null,null,null,{"$f":"K17+K19+K21","v":0}]
[]
[]
[null,null,"Expenses",null,null,null,null,null,null,null,"Amount Projected"]
[]
[null,null,"TOTAL PROJECT EXPENSES:",null,null,null,"(from Project Budget)",null,null,null,{"$f":"'Project Budget'!I55+'Project Budget'!J55+'Project Budget'!K55+'Project Budget'!L55","v":0}]
[]
[null,null,"Non-Project Related Expenses",null,null,null,null,null,null,null,0]
[]
[null,null,"TOTAL EXPENSES:",null,null,null,null,null,null,null,{"$f":"K28+K30","v":0}]
[]
[null,null,"PROJECT GAP:",null,null,null,null,null,null,null,{"$f":"(K17-K28)","v":0}]
[]
[null,null,"TOTAL BUDGET GAP:",null,null,null,null,null,null,null,{"$f":"K23-K32","v":0}]
[]
[]
[null,"XV.   PROJECTED TOTAL COST PER UNIT OF SERVICE"]
[null,null,"The projected total program cost per unit of service is calculated based on the total program budget (excluding matching funds) and the specific program goals set for each eligible category.\n\nCost per Unit of Service= Total Requested Funds ÷ Number of Households to be Served\n "]
[]
[]
[]
[]
[null,null,"Street Outreach",null,null,null,{"$f":"'Project Budget Street Outreach'!J14/'Proposed Goals Outcome '!S14","v":{"$error":"#DIV/0!"}}]
[null,null,"Emergency Shelter",null,null,null,{"$f":"'Project Budget Shelter'!K46/'Proposed Goals Outcome '!S17","v":{"$error":"#DIV/0!"}}]
[null,null,"Rapid Rehousing",null,null,null,{"$f":"'Project Budget RRH'!J27/'Proposed Goals Outcome '!S15","v":{"$error":"#DIV/0!"}}]
[null,null,"Homeless Prevention",null,null,null,{"$f":"'Project Budget HP'!K30/'Proposed Goals Outcome '!S16","v":{"$error":"#DIV/0!"}}]
[null,null,"HMIS",null,null,null,{"$f":"'Project Budget HMIS'!J17","v":0}]
[]
[null,null,"Cost per Unit of Service",null,null,null,{"$f":"'Project Budget'!F57/'Proposed Goals Outcome '!S18","v":{"$error":"#DIV/0!"}}]

{"sheet":"Indirect Cost","index":22,"n_rows":25,"n_cols":12,"rows_kept":25,"cut":false,"hidden":false,"merged":[[2,1,2,9],[16,2,16,4],[19,2,19,4],[4,2,4,4],[4,6,4,9],[10,2,10,4],[12,2,12,4],[13,2,13,4]]}
[]
[null,"XIII.  INDIRECT COST"]
[null,"The Emergency Solutions Grant funding must be used in coordination with other funding sources and programs to ensure a continuum of services. The state must allow subrecipients to elect the 15% de minimis rate 2CFR200.331(a)(4). For more information on ESG Indirect Cost allowance, review HUD's \"Indirect Cost toolkit for CoC and ESG Programs\". \nThe Proposed Budget must provide information on the organization's indirect costs and expenditures projected for 2025-2026.  Complete as accurately and completely as possible.  Failure to do so may result in a reduction or denial of funding. \n\n *Agencies may not receive the complete amount of requested funding, including indirect costs.",null,null,null,null,null,null,null,null,null,"HUD's Indirect Cost Toolkit"]
[null,{"$f":"IF('Applicant Info'!E19=\"\",\"\",'Applicant Info'!E19)","v":""},null,null,null,null,null,null,{"$f":"'Threshold Requirements'!J4","v":"ESG PY 2026"}]
[null,null,"Anticipated Expenses",null,null,null,"Amount Projected with Indirect Cost Per Quarter"]
[]
[null,null,"Projected Project Expenses"]
[null,null,null,null,null,null,"First Quarter","Second Quarter","Third Quarter","Fourth Quarter"]
[null,null,"Shelter Cost",null,null,null,0,0,0,0]
[null,null,"Indirect Shelter Cost",null,null,null,0,0,0,0]
[null,null,"Total Shelter",null,null,null,{"$f":"SUM(G9:G10)","v":0},{"$f":"SUM(H9:H10)","v":0},{"$f":"SUM(I9:I10)","v":0},{"$f":"SUM(J9:J10)","v":0}]
[null,null,"Street Outreach Cost",null,null,null,0,0,0,0]
[null,null,"Indirect Street Outreach Cost",null,null,null,0,0,0,0]
[null,null,"Total Street Outreach",null,null,null,{"$f":"SUM(G12:G13)","v":0},{"$f":"SUM(H12:H13)","v":0},{"$f":"SUM(I12:I13)","v":0},{"$f":"SUM(J12:J13)","v":0}]
[null,null,"Homelessness Prevention (HP) Activities",null,null,null,0,0,0,0]
[null,null,"Indirect HP Cost",null,null,null,0,0,0,0]
[null,null,"Total HP Cost",null,null,null,{"$f":"SUM(G15:G16)","v":0},{"$f":"SUM(H15:H16)","v":0},0,{"$f":"SUM(J15:J16)","v":0}]
[null,null,"Rapid Re-Housing (HP) Activities",null,null,null,{"$f":"SUM(G15:G17)","v":0},0,0,0]
[null,null,"Indirect RRH Cost",null,null,null,0,0,0,0]
[null,null,"Total RRH Cost",null,null,null,{"$f":"SUM(G18:G19)","v":0},{"$f":"SUM(H18:H19)","v":0},0,0]
[null,null,"HMIS",null,null,null,0,0,0,0]
[]
[null,null,"Total Expenses by Quarter:",null,null,null,{"$f":"SUM(G11+G14+G17+G20+G21)","v":0},{"$f":"SUM(H11+H14+H17+H20+H21)","v":0},0,0]
[]
[null,null,"TOTAL REQUEST WITH INDIRECT COST:",null,null,null,null,null,null,{"$f":"G23+H23+I23+J23","v":0}]

{"sheet":"Past Performance ","index":23,"n_rows":144,"n_cols":16,"rows_kept":144,"cut":false,"hidden":false,"merged":[[1,1,1,13],[2,1,2,13],[15,9,15,10],[26,2,26,8],[26,9,26,10],[5,2,5,12],[6,2,6,12],[15,2,15,8],[8,8,9,8],[8,10,9,10],[24,2,24,8],[24,9,24,10],[27,3,27,9],[29,6,29,8],[67,3,67,7],[29,9,29,10],[33,2,33,12],[60,8,60,10],[35,10,36,10],[53,2,53,11],[54,8,54,10],[55,3,55,7],[56,3,56,7],[57,3,57,7],[58,3,58,7],[66,8,66,10],[71,3,71,7],[70,3,70,7],[132,1,132,13],[133,1,135,13],[68,3,68,7],[69,3,69,7],[92,2,92,11],[94,3,94,9],[107,3,107,11],[109,3,109,9],[75,3,75,7],[76,3,76,7],[77,3,77,7],[79,3,79,7],[78,3,78,7]]}
[]
[null,"XIV.   Past Performance & Program Evaluation"]
[null,"Past Performance Measurement is a tool to capture information about program performance to determine how programs and activities are meeting established needs and goals.  (Enter \"N/A\" for indicators that do not apply to your project)."]
[null,{"$f":"IF('Applicant Info'!E19=\"\",\"\",'Applicant Info'!E19)","v":""},"Past Performance /Program Evaluation Up to 15 points",null,null,null,null,null,null,null,null,null,{"$f":"'Threshold Requirements'!J4","v":"ESG PY 2026"},null,null," "]
[]
[null,null,"Are you a returning ESG applicant?\n      Yes   If yes, complete this section in its entirety. \nAre you a new ESG applicant previously funded by HUD to provide homeless-related services? \n      Yes    If yes, attached a copy of your most recent CAPER or APR.\n      No     If no, skip this tab and go to the \"Certification\" tab.  "]
[null,null,"Enter data for the reporting period listed below.  Provide a report from HMIS (or comparable system) to support the data."]
[]
[null,null,null,null,null,null,null,null,"2025-07-01",null,"2026-06-30"]
[null,null,null,null,null,"Reporting Period:",null,"from",null,"to"]
[]
[]
[null,null,"**Agencies funded for ESG 2025 must submit their last two quarterly reports as attachments. "]
[null,null,"2024 & 2025 ESG Funding period"]
[]
[null,null,"Enter the amount of ESG funds expended during the period listed above:",null,null,null,null,null,null,0]
[]
[null,null,null,null,null,null,null,"Shelter",null,0]
[null,null,null,null,null,null,null,"Street Outreach",null,0]
[null,null,null,null,null,null,null,"Rapid Rehousing",null,0]
[null,null,null,null,null,null,null,"Homeless Prevention",null,0]
[null,null,null,null,null,null,null,"HMIS",null,0]
[null,null,null,null,null,null,null,"Total ",null,{"$f":"SUM(J18:J22)","v":0}]
[]
[null,null,"Enter the amount of ESG funds awarded for ESG PY 2025  that has NOT been expended as of July 31, 2026:",null,null,null,null,null,null,0]
[]
[null,null,"Enter the amount of ESG funds awarded PY 2025",null,null,null,null,null,null,0]
[null,null,null,"Expended funds budget breakdown:"]
[]
[null,null,null,null,null,null,"Percentage of previous award not expended:",null,null,{"$f":"100%-((J27-J25)/J27)","v":{"$error":"#DIV/0!"}}]
[]
[]
[null,null,"Racial/Ethnic Characteristics"]
[null,null,"Indicate the annual number of clients served for the reporting period listed above.   Include Residential and Non-Residential Services. "]
[]
[null,null,null,null,null,null,null,null,null,null,"Annual Number"]
[]
[null,null,null,"Caucasian"]
[null,null,null,"Black / African American"]
[null,null,null,"Hispanic"]
[null,null,null,"Asian"]
[null,null,null,"American Indian / Alaskan Native"]
[null,null,null,"Native Hawaiian / Other Pacific Islander"]
[null,null,null,"Asian & White"]
[null,null,null,"Black / African American & Causasian"]
[null,null,null,"Black / African American & American Indian / Alaskan Native"]
[null,null,null,"Other Multi-Racial"]
[null,null,null,"TOTAL:",null,null,null,null,null,null,{"$f":"SUM(K38:K47)","v":0}]
[]
[]
[null,null,"ESG Beneficiaries"]
[]
[null,null,"Individuals/Households Served"]
[null,null,"Define the clients served based on the annual number (not percentages) served for the reporting period listed above.  Do not include duplicate persons."]
[null,null,null,"Annual number of participants",null,null,null,null,"Annual Number"]
[null,null,null,"If you were funded last year, provide the following data elements:",null,null,null,null,"Male","Female","Total"]
[null,null,null,"Number of participants referred to your program from CES",null,null,null,null,null,null,{"$f":"SUM(I57:J57)","v":0}]
[null,null,null,"Number of participants with an individualized plan that assists the participants to retain permanent housing after the ESG assistance",null,null,null,null,null,null,{"$f":"SUM(I58:J58)","v":0}]
[null,null,null,"Number of participants that received case management (meeting with case manager not less than once per month)",null,null,null,null,null,null,{"$f":"SUM(I59:J59)","v":0}]
[]
[]
[null,null,null,"Annual number of Individuals",null,null,null,null,"Male","Female","Total"]
[null,null,null,"Unaccompanied youth 18 to 24",null,null,null,null,null,null,{"$f":"SUM(I63:J63)","v":0}]
[null,null,null,"Unaccompanied youth under 18",null,null,null,null,null,null,{"$f":"SUM(I64:J64)","v":0}]
[null,null,null,null,null,null,null,null,null,null,{"$f":"SUM(K63:K64)","v":0}]
[]
[null,null,null,"Number of participants served during the reporting period",null,null,null,null,"Annual Number"]
[null,null,null,"If you were funded last year, provide the following data elements:",null,null,null,null,"Male","Female","Total"]
[null,null,null,"Number of participants served in Street Outreach",null,null,null,null,null,null,{"$f":"SUM(I69:J69)","v":0}]
[null,null,null,"Number of participants served in Emergency Shelter",null,null,null,null,null,null,{"$f":"SUM(I70:J70)","v":0}]
[null,null,null,"Number of participants served in Rapid Rehousing",null,null,null,null,null,null,{"$f":"SUM(I71:J71)","v":0}]
[null,null,null,"Number of participants served in Homeless Prevention ",null,null,null,null,null,null,{"$f":"SUM(I72:J72)","v":0}]
[null,null,null,null,null,null,null,null,null,null,{"$f":"SUM(K69:K72)","v":0}]
[null,null,null,"State Goals",null,null,null,null,"Male","Female"]
[]
[null,null,null,"Number of unsheltered homeless individuals housed",null,null,null,null,null,null,{"$f":"SUM(I76:J76)","v":0}]
[null,null,null,"Number of participants discharged to permanent housing",null,null,null,null,null,null,{"$f":"SUM(I77:J77)","v":0}]
[null,null,null,"Number of individuals who maintain housing 6 months after discharge. ",null,null,null,null,null,null,0]
[null,null,null,"Number of participants who gained employment while in the program.",null,null,null,null,null,null,0]
[null,null,null,"Number of individuals who increased income while in the program.",null,null,null,null,null,null,0]
[]
[]
[null,null,null,"Annual number of Households headed by:",null,null,null,null,"Male","Female","Total"]
[null,null,null,"Single 18 and over",null,null,null,null,null,null,{"$f":"I84+J84","v":0}]
[null,null,null,"Single under 18",null,null,null,null,null,null,{"$f":"I85+J85","v":0}]
[null,null,null,"Two Parents - 18 and over"]
[null,null,null,"Two Parents - under 18"]
[null,null,null,"Households with no children"]
[null,null,null,null,null,null,null,null,null,null,{"$f":"SUM(K84:K88)","v":0}]
[]
[]
[null,null,"Special Needs"]
[null,null,"List the number of clients for each subpopulation you served.  If you served subpopulations that fit more than one category, you may place overlapping numbers (duplicate persons) on the appropriate lines."]
[]
[null,null,null,"Special Needs Clients",null,null,null,null,null,null,"Number"]
[null,null,null,"Chronically Homeless (Emergency Shelter only)"]
[null,null,null,"Severely Mentally Ill"]
[null,null,null,"Chronic Substance Abuse"]
[null,null,null,"Other Disability"]
[null,null,null,"Veterans"]
[null,null,null,"Persons with HIV/AIDS"]
[null,null,null,"Victims of Domestic Violence"]
[null,null,null,"Elderly"]
[null,null,null,null,null,null,null,null,null,null,{"$f":"SUM(K96:K103)","v":0}]
[]
[]
[]
[null,null,null,"List the number of persons (not percentages) served in Emergency or Transitional Shelters for the reporting period listed above.  Enter \"N/A\" if not applicable."]
[]
[null,null,null,"Shelter Type",null,null,null,null,null,null,"Number of Persons Housed"]
[null,null,null,"Barracks"]
[null,null,null,"Group/Large House"]
[null,null,null,"Scattered Site Apartments"]
[null,null,null,"Single Family Detached House"]
[null,null,null,"Single Room Occupancy"]
[null,null,null,"Mobile Home / Trailer"]
[null,null,null,"Hotel/Motel"]
[null,null,null,"Other"]
[null,null,null,"TOTAL:",null,null,null,null,null,null,{"$f":"SUM(K111:K118)","v":0}]
[]
[]
[null,null,null,"Residential (Emergency Shelters)"]
[null,null,null,"Number of Adults served annually"]
[null,null,null,"Number of Children served annually"]
[null,null,null,"TOTAL:",null,null,null,null,null,null,{"$f":"SUM(K123:K124)","v":0}]
[]
[null,null,null,"Non-Residential "]
[null,null,null,"Number of Adults served annually"]
[null,null,null,"Number of Children served annually"]
[null,null,null,"TOTAL:",null,null,null,null,null,null,{"$f":"SUM(K128:K129)","v":0}]
[]
[]
[null,"TOTAL COST PER UNIT OF SERVICE DURING THE REPORTING TIME"]
[null,"The projected total program cost per unit of service is calculated based on the total program budget (excluding matching funds) and the specific program goals set for each eligible category.\n\nCost per Unit of Service= Total Requested Funds ÷ Number of Households to be Served\n "]
[]
[]
[]
[null,null,null,"Street Outreach",null,null,{"$f":"J19/K69","v":{"$error":"#DIV/0!"}}]
[null,null,null,"Emergency Shelter",null,null,{"$f":"J18/K70","v":{"$error":"#DIV/0!"}}]
[null,null,null,"Rapid Rehousing",null,null,{"$f":"J20/K71","v":{"$error":"#DIV/0!"}}]
[null,null,null,"Homeless Prevention",null,null,{"$f":"J21/K72","v":{"$error":"#DIV/0!"}}]
[null,null,null,"HMIS",null,null,{"$f":"J22","v":0}]
[]
[null,null,null,"Cost per Unit of Service",null,null,null,{"$f":"J23/K73","v":{"$error":"#DIV/0!"}}]

{"sheet":"Certification","index":24,"n_rows":16,"n_cols":13,"rows_kept":16,"cut":false,"hidden":false,"merged":[[1,1,1,13],[2,1,2,13],[7,2,7,12],[11,3,11,9],[13,4,13,7]]}
[]
[null,"XV.   CERTIFICATION"]
[]
[null,{"$f":"IF('Applicant Info'!E19=\"\",\"\",'Applicant Info'!E19)","v":""},null,null,null,null,null,null,null,null,null,null,{"$f":"'Threshold Requirements'!J4","v":"ESG PY 2026"}]
[]
[]
[]
[null,null,"The Applicant certifies that all information in this application and all information furnished in support of this application is given for the purpose of obtaining funds under the Emergency Solutions Grant (ESG) Program and is true and complete to the best of the Applicant's knowledge and belief.  The Applicant shall not, in the provisions of services, or in any other manner, discriminate against any person on the basis of race, color, creed, religion, sex, national origin, age, familial status or handicap.  Verification of any of the information contained in this application may be obtained from any source  named herein."]
[]
[null,null,{"$f":"IF('Applicant Info'!E19=\"\",\"\",'Applicant Info'!E19)","v":""}]
[]
[null,null,"By:"]
[]
[null,null,null,"Its:"]
[]
[null,null,null,"Date:"]

{"sheet":"Attachment A (ED)","index":25,"n_rows":42,"n_cols":12,"rows_kept":42,"cut":false,"hidden":false,"merged":[[12,2,12,3],[12,4,12,10],[13,2,13,3],[13,4,13,10],[3,1,3,11],[4,1,4,11],[6,2,7,10],[8,2,8,10],[11,2,11,3],[11,4,11,10],[14,2,14,3],[14,4,14,5],[14,7,14,10],[17,2,17,3],[17,4,17,8],[18,2,18,3],[18,4,18,8],[19,2,19,3],[19,4,19,8],[24,2,25,2],[24,3,25,4],[24,5,25,5],[24,6,25,6],[24,7,25,7],[24,8,25,8],[24,9,25,9],[24,10,25,10],[26,3,26,4],[27,3,27,4],[28,3,28,4],[29,3,29,4],[30,3,30,4],[31,3,31,4],[32,3,32,4],[33,3,33,4],[41,4,41,7],[41,9,41,10],[36,2,36,10],[37,2,37,3],[38,2,38,10],[39,2,39,10],[40,4,40,7],[40,9,40,10]]}
[]
[null,"ESG PY 2026 Application",null,null,null,null,null,null,null,null,null,"PY 26"]
[]
[null,"V. Capacity and Experience                                                                                                                                        Attachment A"]
[]
[null,"","Up to 10 points Capacity and Experience"]
[null,null,"APPLICANT EXPERIENCE & CAPACITY"]
[]
[null,null,"Mississippi Home Corporation (MHC) gives point preference to applicants whose key staff members (Executive Director (ED), Case Manager (CM) and Finance Staff (FS)) have previous experience in managing projects with federal, state and local funding sources.  Applicants may receive up to fifteen (15) points based on the number of years of experience. MHC reserves the right to verify all information."]
[]
[null,null,"Applicant"]
[null,null,"Applicant Entity:"]
[null,null,"Business Address:"]
[null,null,"Contact Person:"]
[null,null,"Phone:",null,null,null,"Email:"]
[]
[null,null,"Key Staff Member  (Please complete one form for each Key Staff Person)"]
[null,null,"Name:"]
[null,null,"Title:"]
[null,null,"Role in Proposed Project:"]
[]
[]
[null,null,"Previous Experience"]
[null,null,"List all previous experience that the Key Staff Member has with federal, state, or local projects within the past five (5) years."]
[null,null,"Award Year","Project Source of Funds",null,"Funding Amount","All Funds Expended? (Y/N)","Project Activity","No. of People Served","Closed-Out (Y/N)","Number of findings associated with the grant (if any)"]
[]
[]
[]
[]
[]
[]
[]
[]
[]
[]
[null,null,"Provide a brief narrative of how the above listed experience is relevant to the role you will play in the proposed project:"]
[]
[null,null,"Certification"]
[null,null,"I certify that the above Previous Experience information is being submitted to the Mississippi Home Corporation (MHC) as part of an ARP Application. I certify that all the statements made by me are true, complete, and correct to the best of my knowledge and belief and are made in good faith under the penalties of perjury."]
[null,null,"I acknowledge that this certification will be relied on by MHC, its staff members and/or affiliates in its decision-making process. I authorize MHC to obtain any source information regarding me and my experience relative to the activity listed above."]
[null,null,"Board Chair Name/Title: "]
[null,null,"Board Chair Signature: ",null,null,null,null,null,"Date:"]

{"sheet":"Attachment A (CM)","index":26,"n_rows":42,"n_cols":12,"rows_kept":42,"cut":false,"hidden":false,"merged":[[3,1,3,11],[4,1,4,11],[6,2,7,10],[8,2,8,10],[11,2,11,3],[11,4,11,10],[12,2,12,3],[12,4,12,10],[13,2,13,3],[13,4,13,10],[14,2,14,3],[14,4,14,5],[14,7,14,10],[30,3,30,4],[31,3,31,4],[32,3,32,4],[17,2,17,3],[17,4,17,8],[18,2,18,3],[18,4,18,8],[19,2,19,3],[19,4,19,8],[29,3,29,4],[24,2,25,2],[24,3,25,4],[24,5,25,5],[24,6,25,6],[24,9,25,9],[24,10,25,10],[26,3,26,4],[27,3,27,4],[28,3,28,4],[24,7,25,7],[24,8,25,8],[41,4,41,7],[41,9,41,10],[33,3,33,4],[36,2,36,10],[38,2,38,10],[39,2,39,10],[40,4,40,7],[40,9,40,10],[37,2,37,3]]}
[]
[null,"ESG PY 2026 Application",null,null,null,null,null,null,null,null,null,"PY 26"]
[]
[null,"V. Capacity and Experience                                                                                                                       Attachment A"]
[]
[null,"","Up to 10 points Capacity and Experience"]
[null,null,"APPLICANT EXPERIENCE & CAPACITY"]
[]
[null,null,"Mississippi Home Corporation (MHC) gives point preference to applicants whose key staff members (Executive Director (ED), Case Manager (CM) and Finance Staff (FS)) have previous experience in managing projects with federal, state and local funding sources.  Applicants may receive up to fifteen (15) points based on the number of years of experience. MHC reserves the right to verify all information."]
[]
[null,null,"Applicant"]
[null,null,"Applicant Entity:"]
[null,null,"Business Address:"]
[null,null,"Contact Person:"]
[null,null,"Phone:",null,null,null,"Email:"]
[]
[null,null,"Key Staff Member  (Please complete one form for each Key Staff Person)"]
[null,null,"Name:"]
[null,null,"Title:"]
[null,null,"Role in Proposed Project:"]
[]
[]
[null,null,"Previous Experience"]
[null,null,"List all previous experience that the Key Staff Member has with federal, state, or local projects within the past five (5) years."]
[null,null,"Award Year","Project Source of Funds",null,"Funding Amount","All Funds Expended? (Y/N)","Project Activity","No. of People Served","Closed-Out (Y/N)","Number of findings associated with the grant (if any)"]
[]
[]
[]
[]
[]
[]
[]
[]
[]
[]
[null,null,"Provide a brief narrative of how the above listed experience is relevant to the role you will play in the proposed project:"]
[]
[null,null,"Certification"]
[null,null,"I certify that the above Previous Experience information is being submitted to the Mississippi Home Corporation (MHC) as part of an ARP Application. I certify that all the statements made by me are true, complete, and correct to the best of my knowledge and belief and are made in good faith under the penalties of perjury."]
[null,null,"I acknowledge that this certification will be relied on by MHC, its staff members and/or affiliates in its decision-making process. I authorize MHC to obtain any source information regarding me and my experience relative to the activity listed above."]
[null,null,"Executive Director  Name/Title: "]
[null,null,"Executive Director  Signature: ",null,null,null,null,null,"Date:"]

{"sheet":"Attachment A (FS)","index":27,"n_rows":42,"n_cols":12,"rows_kept":42,"cut":false,"hidden":false,"merged":[[3,1,3,11],[4,1,4,11],[6,2,7,10],[8,2,8,10],[11,2,11,3],[11,4,11,10],[12,2,12,3],[12,4,12,10],[13,2,13,3],[13,4,13,10],[14,2,14,3],[14,4,14,5],[14,7,14,10],[30,3,30,4],[31,3,31,4],[32,3,32,4],[17,2,17,3],[17,4,17,8],[18,2,18,3],[18,4,18,8],[19,2,19,3],[19,4,19,8],[29,3,29,4],[24,2,25,2],[24,3,25,4],[24,5,25,5],[24,6,25,6],[24,9,25,9],[24,10,25,10],[26,3,26,4],[27,3,27,4],[28,3,28,4],[24,7,25,7],[24,8,25,8],[41,4,41,7],[41,9,41,10],[33,3,33,4],[36,2,36,10],[38,2,38,10],[39,2,39,10],[40,4,40,7],[40,9,40,10],[37,2,37,3]]}
[]
[null,"ESG PY 2026 Application",null,null,null,null,null,null,null,null,null,"PY 26"]
[]
[null,"V. Capacity and Experience                                                                                                    Attachment A"]
[]
[null,"","Up to 10 points Capacity and Experience"]
[null,null,"APPLICANT EXPERIENCE & CAPACITY"]
[]
[null,null,"Mississippi Home Corporation (MHC) gives point preference to applicants whose key staff members (Executive Director (ED), Case Manager (CM) and Finance Staff (FS)) have previous experience in managing projects with federal, state and local funding sources.  Applicants may receive up to fifteen (15) points based on the number of years of experience. MHC reserves the right to verify all information."]
[]
[null,null,"Applicant"]
[null,null,"Applicant Entity:"]
[null,null,"Business Address:"]
[null,null,"Contact Person:"]
[null,null,"Phone:",null,null,null,"Email:"]
[]
[null,null,"Key Staff Member  (Please complete one form for each Key Staff Person)"]
[null,null,"Name:"]
[null,null,"Title:"]
[null,null,"Role in Proposed Project:"]
[]
[]
[null,null,"Previous Experience"]
[null,null,"List all previous experience that the Key Staff Member has with federal, state, or local projects within the past five (5) years."]
[null,null,"Award Year","Project Source of Funds",null,"Funding Amount","All Funds Expended? (Y/N)","Project Activity","No. of People Served","Closed-Out (Y/N)","Number of findings associated with the grant (if any)"]
[]
[]
[]
[]
[]
[]
[]
[]
[]
[]
[null,null,"Provide a brief narrative of how the above listed experience is relevant to the role you will play in the proposed project:"]
[]
[null,null,"Certification"]
[null,null,"I certify that the above Previous Experience information is being submitted to the Mississippi Home Corporation (MHC) as part of an ARP Application. I certify that all the statements made by me are true, complete, and correct to the best of my knowledge and belief and are made in good faith under the penalties of perjury."]
[null,null,"I acknowledge that this certification will be relied on by MHC, its staff members and/or affiliates in its decision-making process. I authorize MHC to obtain any source information regarding me and my experience relative to the activity listed above."]
[null,null,"Board Chair Name/Title: "]
[null,null,"Board Chair Signature: ",null,null,null,null,null,"Date:"]

{"sheet":"Factors.","index":28,"n_rows":88,"n_cols":20,"rows_kept":88,"cut":false,"hidden":true,"merged":[]}
[]
[]
[]
[null,"activity_type",null,null,null,null,"Counties",null,null,null,"employment",null,null,null,"support_docs",null,null,null,null,"app_yr"]
[]
[null,"Emergency Shelter",null,null,null,null,1,null,null,null,"Part-time",null,null,null,"Commitment Letter",null,null,null,null,2023]
[null,"Street Outreach",null,null,null,null,{"$f":"G6+1","v":2},"Adams",null,null,"Full-Time",null,null,null,"Award Letter",null,null,null,null,2024]
[null,"Rapid-Re-housing",null,null,null,null,3,"Alcorn",null,null,null,null,null,null,"Bank Statement"]
[null,"Homelessness Prevention",null,null,null,null,4,"Amite",null,null,null,null,null,null,"Other (Explain in Project Narrative)"]
[null,"HMIS",null,null,null,null,5,"Attala"]
[null,null,null,null,null,null,6,"Benton"]
[null,null,null,null,null,null,7,"Bolivar"]
[null,null,null,null,null,null,8,"Calhoun"]
[null,null,null,null,null,null,9,"Carroll"]
[null,null,null,null,null,null,10,"Chickasaw"]
[null,null,null,null,null,null,11,"Choctaw"]
[null,null,null,null,null,null,12,"Claiborne"]
[null,null,null,null,null,null,13,"Clarke"]
[null,null,null,null,null,null,14,"Clay"]
[null,null,null,null,null,null,15,"Coahoma"]
[null,null,null,null,null,null,16,"Copiah"]
[null,null,null,null,null,null,17,"Covington"]
[null,null,null,null,null,null,18,"DeSoto"]
[null,null,null,null,null,null,19,"Forrest"]
[null,null,null,null,null,null,20,"Franklin"]
[null,null,null,null,null,null,21,"George"]
[null,null,null,null,null,null,22,"Greene"]
[null,null,null,null,null,null,23,"Grenada"]
[null,null,null,null,null,null,24,"Hancock"]
[null,null,null,null,null,null,25,"Harrison"]
[null,null,null,null,null,null,26,"Hinds"]
[null,null,null,null,null,null,27,"Holmes"]
[null,null,null,null,null,null,28,"Humphreys"]
[null,null,null,null,null,null,29,"Issaquena"]
[null,null,null,null,null,null,30,"Itawamba"]
[null,null,null,null,null,null,31,"Jackson"]
[null,null,null,null,null,null,32,"Jasper"]
[null,null,null,null,null,null,33,"Jefferson"]
[null,null,null,null,null,null,34,"Jefferson Davis"]
[null,null,null,null,null,null,35,"Jones"]
[null,null,null,null,null,null,36,"Kemper"]
[null,null,null,null,null,null,37,"Lafayette"]
[null,null,null,null,null,null,38,"Lamar"]
[null,null,null,null,null,null,39,"Lauderdale"]
[null,null,null,null,null,null,40,"Lawrence"]
[null,null,null,null,null,null,41,"Leake"]
[null,null,null,null,null,null,42,"Lee"]
[null,null,null,null,null,null,43,"Leflore"]
[null,null,null,null,null,null,44,"Lincoln"]
[null,null,null,null,null,null,45,"Lowndes"]
[null,null,null,null,null,null,46,"Madison"]
[null,null,null,null,null,null,47,"Marion"]
[null,null,null,null,null,null,48,"Marshall"]
[null,null,null,null,null,null,49,"Monroe"]
[null,null,null,null,null,null,50,"Montgomery"]
[null,null,null,null,null,null,51,"Neshoba"]
[null,null,null,null,null,null,52,"Newton"]
[null,null,null,null,null,null,53,"Noxubee"]
[null,null,null,null,null,null,54,"Oktibbeha"]
[null,null,null,null,null,null,55,"Panola"]
[null,null,null,null,null,null,56,"Pearl River"]
[null,null,null,null,null,null,57,"Perry"]
[null,null,null,null,null,null,58,"Pike"]
[null,null,null,null,null,null,59,"Pontotoc"]
[null,null,null,null,null,null,60,"Prentiss"]
[null,null,null,null,null,null,61,"Quitman"]
[null,null,null,null,null,null,62,"Rankin"]
[null,null,null,null,null,null,63,"Scott"]
[null,null,null,null,null,null,64,"Sharkey"]
[null,null,null,null,null,null,65,"Simpson"]
[null,null,null,null,null,null,66,"Smith"]
[null,null,null,null,null,null,67,"Stone"]
[null,null,null,null,null,null,68,"Sunflower"]
[null,null,null,null,null,null,69,"Tallahatchie"]
[null,null,null,null,null,null,70,"Tate"]
[null,null,null,null,null,null,71,"Tippah"]
[null,null,null,null,null,null,72,"Tishomingo"]
[null,null,null,null,null,null,73,"Tunica"]
[null,null,null,null,null,null,74,"Union"]
[null,null,null,null,null,null,75,"Walthall"]
[null,null,null,null,null,null,76,"Warren"]
[null,null,null,null,null,null,77,"Washington"]
[null,null,null,null,null,null,78,"Wayne"]
[null,null,null,null,null,null,79,"Webster"]
[null,null,null,null,null,null,80,"Wilkinson"]
[null,null,null,null,null,null,81,"Winston"]
[null,null,null,null,null,null,82,"Yalobusha"]
[null,null,null,null,null,null,83,"Yazoo"]

{"sheet":"Project Budget Street Outreach","index":29,"n_rows":14,"n_cols":10,"rows_kept":14,"cut":false,"hidden":false,"merged":[[1,2,1,10],[3,5,3,8],[2,12,14,12]]}
[]
[null,null,"Projected Project Expenses"]
[null,null,null,null,"HOME"]
[null,null,"Street Outreach (576.101)",null,null,"Budget Estimates"]
[null,null,null,"Budget","Q-1","Q-2","Q-3","Q-4",null,"Total"]
[null,null,null,{"$f":"(J14)","v":0}]
[null,null,"Engagement",null,0,0,0,0,null,{"$f":"(E7+F7+G7+H7)","v":0}]
[null,null,"Case Management",null,0,0,0,0,null,0]
[null,null,"Emergency health services",null,0,0,0,0,null,0]
[null,null,"Emergency mental health services",null,0,0,0,0,null,0]
[null,null,"Transportation",null,0,0,0,0,null,0]
[]
[]
[null,null,"TOTALS",null,{"$f":"SUM(E7:E12)","v":0},{"$f":"SUM(F7:F12)","v":0},{"$f":"SUM(G7:G12)","v":0},{"$f":"SUM(H7:H12)","v":0},null,{"$f":"SUM(J7:J12)","v":0}]

{"sheet":"Project Budget Shelter","index":30,"n_rows":46,"n_cols":11,"rows_kept":46,"cut":false,"hidden":false,"merged":[[7,4,7,10],[12,3,45,3]]}
[]
[]
[]
[]
[]
[]
[]
[null,null,null,null,"Projected Project Expenses"]
[]
[null,null,null,null,"HOME"]
[null,null,"Emergency Shelter (576.102)",null,null,"Budget Estimates"]
[null,null,null,null,"Budget","Q-1","Q-2","Q-3","Q-4",null,"Total"]
[null,null,null,null,{"$f":"K46","v":0}]
[null,null,"Services"]
[null,null,"Case Management",null,null,0,0,0,0,null,{"$f":"F15+G15+H15+I15","v":0}]
[null,null,"Child Care",null,null,0,0,0,0,null,0]
[null,null,"Education Services",null,null,0,0,0,0,null,0]
[null,null,"Employment assistance and job training",null,null,0,0,0,0,null,0]
[null,null,"Outpatient health services",null,null,0,0,0,0,null,0]
[null,null,"Legal services.",null,null,0,0,0,0,null,0]
[null,null,"Life skills training",null,null,0,0,0,0,null,0]
[null,null,"Mental health services",null,null,0,0,0,0,null,0]
[null,null,"Substance abuse treatment services",null,null,0,0,0,0,null,0]
[null,null,"Transportation",null,null,0,0,0,0,null,0]
[null,null,"Vehicle Purchase",null,null,0,0,0,0,null,0]
[null,null,"Services for special populations",null,null,0,0,0,0,null,0]
[null,null,"Renovation"]
[null,null,"Labor",null,null,0,0,0,0,null,0]
[null,null,"Materials",null,null,0,0,0,0,null,0]
[null,null,"Other",null,null,0,0,0,0,null,0]
[]
[null,null,"Shelter Operations"]
[null,null,"Maintenance",null,null,0,0,0,0,null,0]
[null,null,"Rent",null,null,0,0,0,0,null,0]
[null,null,"Security",null,null,0,0,0,0,null,0]
[null,null,"Fuel",null,null,0,0,0,0,null,0]
[null,null,"Equipment",null,null,0,0,0,0,null,0]
[null,null,"Insurance",null,null,0,0,0,0,null,0]
[null,null,"Utilities",null,null,0,0,0,0,null,0]
[null,null,"Food",null,null,0,0,0,0,null,0]
[null,null,"Furnishings",null,null,0,0,0,0,null,0]
[null,null,"Supplies",null,null,0,0,0,0,null,0]
[null,null,"Hotel/Motel Costs",null,null,0,0,0,0,null,0]
[]
[]
[null,null,"TOTALS",null,null,{"$f":"SUM(F15:F44)","v":0},{"$f":"SUM(G15:G44)","v":0},{"$f":"SUM(H15:H44)","v":0},{"$f":"SUM(I15:I44)","v":0},null,{"$f":"SUM(K15:K44)","v":0}]

{"sheet":"Project Budget RRH","index":31,"n_rows":27,"n_cols":10,"rows_kept":27,"cut":false,"hidden":false,"merged":[[1,1,1,10],[2,4,2,7],[4,2,25,2]]}
[]
[null,"Projected Project Expenses"]
[null,"Rapid Re-housing (576.104)",null,"HOME"]
[null,null,null,"Budget","Q-1","Q-2","Q-3","Q-4 ",null,"Total"]
[null,null,null,{"$f":"J27","v":0}]
[null,"Housing Relocation and Stabilization Services (576.105)"]
[null,"Financial Assistance Costs"]
[null,"Rental application fees",null,null,0,0,0,0,null,{"$f":"E8+F8+G8+H8","v":0}]
[null,"Security deposits",null,null,0,0,0,0,null,{"$f":"E9+F9+G9+H9","v":0}]
[null,"Last month's rent",null,null,0,0,0,0,null,0]
[null,"Utility deposits",null,null,0,0,0,0,null,0]
[null,"Utility payments",null,null,0,0,0,0,null,0]
[null,"Moving costs",null,null,0,0,0,0,null,0]
[null,"VAWA Emergency Transfer Costs",null,null,0,0,0,0,null,0]
[null,"Services"]
[null,"Housing search and placement",null,null,0,0,0,0,null,0]
[null,"Housing stability case management",null,null,0,0,0,0,null,0]
[null,"Mediation",null,null,0,0,0,0,null,0]
[null,"Legal services",null,null,0,0,0,0,null,0]
[null,"Credit repair",null,null,0,0,0,0,null,0]
[]
[null,"Rental Assistance (576.106)"]
[null,"Short Term Rental Assistance (TBRA)",null,null,0,0,0,0,null,0]
[null,"Medium Term Rental Assistance (TBRA)",null,null,0,0,0,0,null,0]
[]
[]
[null,"TOTALS",null,null,{"$f":"SUM(E8:E26)","v":0},{"$f":"SUM(F8:F25)","v":0},{"$f":"SUM(G8:G25)","v":0},{"$f":"SUM(H8:H25)","v":0},null,{"$f":"SUM(J8:J25)","v":0}]

{"sheet":"Project Budget HP","index":32,"n_rows":30,"n_cols":11,"rows_kept":30,"cut":false,"hidden":false,"merged":[[8,3,29,3],[1,2,1,10],[3,2,3,10],[4,5,4,8],[7,3,7,10]]}
[]
[null,null,"Projected Project Expenses"]
[]
[null,null,"Projected Project Expenses"]
[null,null,"Homeless Prevention (576.103)",null,"HOME","Budget Estimates"]
[null,null,null,null,"Budget","Q-1","Q-2","Q-3","Q-4",null,"Total "]
[null,null,null,null,{"$f":"(K30)","v":0}]
[null,null,"Housing Relocation and Stabilization Services (576.105)"]
[null,null,"Financial Assistance Costs"]
[null,null,"Rental application fees",null,null,0,0,0,0,null,{"$f":"(F10+G10+H10+I10)","v":0}]
[null,null,"Security deposits",null,null,0,0,0,0,null,{"$f":"(F11+G11+H11+I11)","v":0}]
[null,null,"Last month's rent",null,null,0,0,0,0,null,{"$f":"(F12+G12+H12+I12)","v":0}]
[null,null,"Utility deposits",null,null,0,0,0,0,null,{"$f":"(F13+G13+H13+I13)","v":0}]
[null,null,"Utility payments",null,null,0,0,0,0,null,0]
[null,null,"Moving costs",null,null,0,0,0,0,null,0]
[null,null,"VAWA Emergency Transfer Costs",null,null,0,0,0,0,null,0]
[null,null,"Services"]
[null,null,"Housing search and placement",null,null,0,0,0,0,null,0]
[null,null,"Housing stability case management",null,null,0,0,0,0,null,0]
[null,null,"Mediation",null,null,0,0,0,0,null,0]
[null,null,"Legal services",null,null,0,0,0,0,null,0]
[null,null,"Credit repair",null,null,0,0,0,0,null,0]
[]
[null,null,"Rental Assistance (576.106)"]
[null,null,"Short Term Rental Assistance (TBRA)",null,null,0,0,0,0,null,{"$f":"(F25+G25+H25+I25)","v":0}]
[null,null,"Medium Term Rental Assistance (TBRA)",null,null,0,0,0,0,null,{"$f":"(F26+G26+H26+I26)","v":0}]
[null,null,"Rental Arrears",null,null,0,0,0,0,null,0]
[]
[]
[null,null,"TOTALS",null,null,{"$f":"SUM(F10:F28)","v":0},{"$f":"SUM(G10:G28)","v":0},{"$f":"SUM(H10:H28)","v":0},{"$f":"SUM(I10:I28)","v":0},null,{"$f":"SUM(K10:K28)","v":0}]

{"sheet":"Project Budget HMIS","index":33,"n_rows":17,"n_cols":10,"rows_kept":17,"cut":false,"hidden":false,"merged":[[1,1,1,10],[2,4,2,7],[2,10,16,10],[4,2,16,2]]}
[]
[null,"Projected Project Expenses"]
[null,"HMIS (576.107)",null,"HOME"]
[null,null,null,"Budget","Q-1","Q-2","Q-3","Q-4",null,"Total"]
[null,"Financial Assistance Costs",null,{"$f":"(J17)","v":0}]
[null,"Purchasing or leasing computer hardware",null,null,0,0,0,0,null,{"$f":"(E6+F6+G6+H6)","v":0}]
[null,"Purchasing software or software licenses",null,null,0,0,0,0,null,{"$f":"(E7+F7+G7+H7)","v":0}]
[null,"Purchasing or leasing equipment, including telephones, fax machines, and furniture",null,null,0,0,0,0,null,0]
[null,"Obtaining technical support",null,null,0,0,0,0,null,0]
[null,"Leasing office space",null,null,0,0,0,0,null,0]
[null,"Paying charges for electricity, gas, water, phone service, and high-speed data transmission necessary to operate or contribute data to the HMIS",null,null,0,0,0,0,null,0]
[null,"Salaries to complete data entry/data analysis; monitor/review data quality; report to HMIS Lead; train staff to use database",null,null,0,0,0,0,null,0]
[null,"Costs of staff to travel to and attend HUD-sponsored and HUD-approved training on HMIS and programs authorized by Title IV of the McKinney-Vento Homeless Assistance Act",null,null,0,0,0,0,null,0]
[null,"Staff travel costs to conduct intake",null,null,0,0,0,0,null,0]
[null,"Paying participation fees charged by the HMIS Lead",null,null,0,0,0,0,null,0]
[]
[null,"Total",null,null,{"$f":"SUM(E6:E16)","v":0},{"$f":"SUM(F6:F16)","v":0},{"$f":"SUM(G6:G16)","v":0},{"$f":"SUM(H6:H16)","v":0},null,{"$f":"SUM(J6:J16)","v":0}]